Workbook

Sheet AER CF (hidden)
B1: AER CONDITIONAL FORMATTING
B4: CONDITIONAL FORMATTING MAP
F5: =INDEX(dms_CF_3.6.1, MATCH(dms_TradingName,dms_CF_TradingName))="Y" | G5: =INDEX(dms_CF_3.6.5, MATCH(dms_TradingName,dms_CF_TradingName))="Y" | H5: =INDEX(dms_CF_3.6.6, MATCH(dms_TradingName,dms_CF_TradingName))="Y" | I5: =INDEX(dms_CF_3.6.7.1, MATCH(dms_TradingName,dms_CF_TradingName))="Y" | J5: =INDEX(dms_CF_3.6.7.2, MATCH(dms_TradingName,dms_CF_TradingName))="Y" | K5: =INDEX(dms_CF_3.6.7.3, MATCH(dms_TradingName,dms_CF_TradingName))="Y" | L5: =INDEX(dms_CF_3.6.7.4, MATCH(dms_TradingName,dms_CF_TradingName))="Y" | M5: =INDEX(dms_CF_3.6.8, MATCH(dms_TradingName,dms_CF_TradingName))="Y" | N5: =INDEX(dms_CF_4.1, MATCH(dms_TradingName,dms_CF_TradingName))="Y" | O5: =INDEX(dms_CF_6.6.1, MATCH(dms_TradingName,dms_CF_TradingName))="Y" | P5: =INDEX(dms_CF_6.8, MATCH(dms_TradingName,dms_CF_TradingName))="Y" | Q5: =INDEX(dms_CF_7.12, MATCH(dms_TradingName,dms_CF_TradingName))="Y" | R5: =INDEX(dms_CF_8.1_A, MATCH(dms_TradingName,dms_CF_TradingName))="Y" | S5: =INDEX(dms_CF_8.1_B, MATCH(dms_TradingName,dms_CF_TradingName))="Y" | T5: =INDEX(dms_CF_8.1_Neg, MATCH(dms_TradingName,dms_CF_TradingName))="Y" | U5: =INDEX(dms_CF_4.4.1_Neg, MATCH(dms_TradingName,dms_CF_TradingName))="Y"
B6: dms_CF_TradingName | C6: JurisdictionList | D6: Sector | E6: Segment | F6: dms_CF_3.6.1 | G6: dms_CF_3.6.5 | H6: dms_CF_3.6.6 | I6: dms_CF_3.6.7.1 | J6: dms_CF_3.6.7.2 | K6: dms_CF_3.6.7.3 | L6: dms_CF_3.6.7.4 | M6: dms_CF_3.6.8 | N6: dms_CF_4.1 | O6: dms_CF_6.6.1 | P6: dms_CF_6.8 | Q6: dms_CF_7.12 | R6: dms_CF_8.1_A | S6: dms_CF_8.1_B | T6: dms_CF_8.1_Neg | U6: dms_CF_4.4.1 | V6: dms_CF_MAIFI_flag | W6: Spare1 | X6: Spare2
B7: ActewAGL Distribution | C7: ACT | D7: Electricity | E7: Distribution | G7: Y | I7: Y | J7: Y | K7: N | L7: Y | M7: N | N7: Y | O7: N | P7: Y | Q7: Y | R7: N | S7: Y | T7: Y | U7: N | V7: N | W7: N | X7: N
B8: Ausgrid | C8: NSW | D8: Electricity | E8: Distribution | G8: Y | I8: N | J8: N | K8: N | L8: Y | M8: N | N8: Y | O8: N | P8: Y | Q8: Y | R8: N | S8: Y | T8: Y | U8: N | V8: N | W8: N | X8: N
B9: AusNet (D) | C9: Vic | D9: Electricity | E9: Distribution | G9: N | I9: N | J9: N | K9: N | L9: N | M9: N | N9: Y | O9: N | P9: Y | Q9: N | R9: N | S9: N | T9: Y | U9: N | V9: N | W9: N | X9: N
B10: AusNet (T) | C10: Vic | D10: Electricity | E10: Transmission | G10: N | I10: N | J10: N | K10: N | L10: N | M10: N | N10: Y | O10: N | P10: Y | Q10: N | R10: N | S10: N | T10: Y | U10: N | V10: N | W10: N | X10: N
B11: CitiPower | C11: Vic | D11: Electricity | E11: Distribution | G11: N | I11: N | J11: N | K11: N | L11: N | M11: N | N11: Y | O11: N | P11: Y | Q11: N | R11: N | S11: N | T11: Y | U11: N | V11: N | W11: N | X11: N
B12: Directlink | C12: Qld | D12: Electricity | E12: Transmission | G12: N | I12: N | J12: N | K12: N | L12: N | M12: N | N12: Y | O12: N | P12: Y | Q12: N | R12: N | S12: Y | T12: Y | U12: N | V12: N | W12: N | X12: N
B13: ElectraNet | C13: SA | D13: Electricity | E13: Transmission | G13: N | I13: N | J13: N | K13: N | L13: N | M13: N | N13: Y | O13: N | P13: Y | Q13: N | R13: N | S13: Y | T13: Y | U13: N | V13: N | W13: N | X13: N
B14: Endeavour Energy | C14: NSW | D14: Electricity | E14: Distribution | G14: Y | I14: N | J14: N | K14: N | L14: Y | M14: N | N14: Y | O14: N | P14: Y | Q14: Y | R14: N | S14: Y | T14: Y | U14: Y | V14: N | W14: N | X14: N
B15: Energex | C15: Qld | D15: Electricity | E15: Distribution | G15: Y | I15: N | J15: N | K15: N | L15: N | M15: N | N15: Y | O15: N | P15: Y | Q15: Y | R15: N | S15: Y | T15: Y | U15: Y | V15: N | W15: N | X15: N
B16: Ergon Energy | C16: Qld | D16: Electricity | E16: Distribution | G16: Y | I16: N | J16: N | K16: N | L16: N | M16: N | N16: Y | O16: N | P16: Y | Q16: Y | R16: N | S16: Y | T16: Y | U16: N | V16: N | W16: N | X16: N
B17: Essential Energy | C17: NSW | D17: Electricity | E17: Distribution | G17: Y | I17: N | J17: N | K17: N | L17: Y | M17: N | N17: Y | O17: N | P17: Y | Q17: Y | R17: N | S17: Y | T17: Y | U17: N | V17: N | W17: N | X17: N
B18: Jemena Electricity | C18: Vic | D18: Electricity | E18: Distribution | G18: N | I18: N | J18: N | K18: N | L18: N | M18: N | N18: Y | O18: N | P18: Y | Q18: N | R18: N | S18: N | T18: Y | U18: N | V18: N | W18: N | X18: N
B19: Murraylink | C19: SA | D19: Electricity | E19: Transmission | G19: N | I19: N | J19: N | K19: N | L19: N | M19: N | N19: Y | O19: N | P19: Y | Q19: N | R19: N | S19: Y | T19: Y | U19: N | V19: N | W19: N | X19: N
B20: Power and Water | C20: NT | D20: Electricity | E20: Distribution | G20: N | I20: N | J20: Y | K20: N | L20: N | M20: Y | N20: Y | O20: Y | P20: Y | Q20: Y | R20: N | S20: Y | T20: Y | U20: N | V20: N | W20: N | X20: N
B21: Powercor Australia | C21: Vic | D21: Electricity | E21: Distribution | G21: N | I21: N | J21: N | K21: N | L21: N | M21: N | N21: Y | O21: N | P21: Y | Q21: N | R21: N | S21: N | T21: Y | U21: N | V21: N | W21: N | X21: N
B22: Powerlink | C22: Qld | D22: Electricity | E22: Transmission | G22: N | I22: N | J22: N | K22: N | L22: N | M22: N | N22: Y | O22: N | P22: Y | Q22: N | R22: N | S22: Y | T22: Y | U22: N | V22: N | W22: N | X22: N
B23: SA Power Networks | C23: SA | D23: Electricity | E23: Distribution | G23: Y | I23: N | J23: N | K23: N | L23: N | M23: N | N23: Y | O23: N | P23: Y | Q23: Y | R23: Y | S23: Y | T23: N | U23: N | V23: N | W23: N | X23: N
B24: TasNetworks (D) | C24: Tas | D24: Electricity | E24: Distribution | G24: Y | I24: N | J24: N | K24: N | L24: N | M24: N | N24: Y | O24: N | P24: Y | Q24: Y | R24: N | S24: Y | T24: Y | U24: N | V24: N | W24: N | X24: N
B25: TasNetworks (T) | C25: Tas | D25: Electricity | E25: Transmission | G25: N | I25: N | J25: N | K25: N | L25: N | M25: N | N25: Y | O25: N | P25: Y | Q25: N | R25: N | S25: Y | T25: Y | U25: N | V25: N | W25: N | X25: N
B26: TransGrid | C26: NSW | D26: Electricity | E26: Transmission | G26: N | I26: N | J26: N | K26: N | L26: N | M26: N | N26: Y | O26: N | P26: Y | Q26: N | R26: N | S26: Y | T26: Y | U26: N | V26: N | W26: N | X26: N
B27: United Energy | C27: Vic | D27: Electricity | E27: Distribution | G27: N | I27: N | J27: N | K27: N | L27: N | M27: N | N27: Y | O27: N | P27: Y | Q27: N | R27: N | S27: N | T27: Y | U27: N | V27: N | W27: N | X27: N
B30: Confidential
B31: Amended
B33: Worksheet 6.2 STPIS reliability
B34: Formula | F34: Applied to:
B36: =INDEX(dms_CBD_flag,MATCH(dms_TradingName,dms_TradingName_List))="NO" | F36: $D$11,$D$17,$D$23,$D$33,$D$39,$D$45,$D$55,$D$61,$D$67,$D$77,$D$83,$D$89
B37: =INDEX(dms_Urban_flag,MATCH(dms_TradingName,dms_TradingName_List))="NO" | F37: $D$12,$D$18,$D$24,$D$56,$D$62,$D$78,$D$68,$D$84
B38: =INDEX(dms_ShortRural_flag,MATCH(dms_TradingName,dms_TradingName_List))="NO" | F38: $D$13,$D$19,$D$25,$D$57,$D$63,$D$69,$D$79,$D$85
B39: =INDEX(dms_LongRural_flag,MATCH(dms_TradingName,dms_TradingName_List))="NO" | F39: $D$14,$D$20,$D$26,$D$58,$D$64,$D$65,$D$70,$D$71,$D$80,$D$86
B40: =INDEX(dms_FeederType_5_flag,MATCH(dms_TradingName,dms_TradingName_List))="NO" | F40: $D$87,$D$81,$D$71,$D$65,$D$59,$D$49,$D$43,$D$37,$D$21,$D$15
B41: =dms_MAIFI_Flag="No" | F41: $D$55:$D$72
B44: Business & other details
B45: =(INDEX(dms_Model_Span,MATCH(dms_Model,dms_Model_List))>1)
B46: =(INDEX(dms_Model_Span,MATCH(dms_Model,dms_Model_List))=1)
B49: STYLES IN USE
C50: dms_1
C51: dms_2
C52: dms_3
C53: dms_4
C54: dms_5
C55: dms_NUM
C56: dms_NUM%
C57: dms_Row_Locked
C58: dms_Row1
C59: dms_Row2
C60: dms_T1
C61: dms_T2
C62: dms_BH
C63: dms_BY1
C64: dms_BY2
C65: dms_GH
C66: dms_GY1
C67: dms_GY2
C126: 0
C127: =IFERROR(IF(dms_Model="ARR",(MAX(0,dms_0608_LastRow-dms_0608_OffsetRows)),"not an ARR"),"0") -> not an ARR

Sheet AER NRs (hidden)
B1: AER NAMED RANGES
B3: DROP DOWN SELECTORS USED IN WORKBOOKS
B5: COVER SHEET | C5: dms_DataQuality_List | D5: dms_Confid_status_List
C6: -- select -- | D6: -- select --
C7: Actual | D7: Public
C8: Estimate | D8: Confidential
C9: Consolidated
C12: For all files either AER or business needs to be able to specify the type of submission | D12: For PTRM & RFM templates we must provide a choice in case they change their form of control - otherwise it is drawn from the business specific lookup table above.
C13: dms_SourceList | D13: dms_FormControl_Choices
C14: -- select -- | D14: Revenue cap
C15: After appeal | D15: Revenue yield
C16: Draft decision | D16: Weighted average price cap
C17: Final decision
C18: PTRM update 1
C19: PTRM update 2
C20: PTRM update 3
C21: PTRM update 4
C22: PTRM update 5
C23: PTRM update 6
C24: PTRM update 7
C25: Regulatory proposal
C26: Reporting
C27: Revised regulatory proposal
L30: This is used to create an image to insert on 6.3 STPIS sheet - not for dropdown lists.
B31: CA & RESET RINS DNSP | C31: dms_DNSP_020301_SubstationType | D31: dms_DNSP_020301_ProjectType | E31: dms_DNSP_020301_ProjectTrigger | F31: dms_DNSP_020302_ProjectType | G31: dms_DNSP_020302_ProjectTrigger | H31: dms_STPIS_Exclusion_List | I31: dms_Reason_Interruption | J31: dms_Reason_Interruption_Detailed | L31: Reason for interruption
C32: Subtransmission substation | D32: New substation establishment | E32: Demand growth | F32: New line on new route - single circuit | G32: Demand growth | H32: Weather | I32: Animal | J32: Animal impact | L32: Animal | M32: Animal impact
C33: Zone substation | D33: Substation upgrade - capacity | E33: Voltage issues | F33: New line on new route - dual circuit | G33: Voltage issues | H33: Equipment failure | I33: Asset failure | J33: Animal nesting/burrowing, etc and other | M33: Animal nesting/burrowing, etc and other
C34: Switching station | D34: Substation upgrade - voltage | E34: Reactive power issue | F34: New line on new route - other | G34: Reactive power issue | H34: Operational error | I34: Other | J34: Other | M34: Other
C35: Other | D35: Other | E35: Fault level issues | F35: Line rebuild over existing route - single circuit | G35: Fault level issues | H35: Vegetation | I35: Overloads | J35: LV | L35: Asset failure | M35: LV
E36: Safety | F36: Line rebuild over existing route - dual circuit | G36: Net market benefit | H36: Animals | I36: Planned | J36: Distribution substation | M36: Distribution substation
E37: Environment | F37: Reconductor - Single circuit | G37: Safety | H37: Third party impacts | I37: Network business | J37: HV | M37: HV
E38: Other | F38: Reconductor - Dual circuit | G38: Environment | H38: Transmission failure | I38: Third party | J38: Zone substation | M38: Zone substation
F39: Reconductor - Other | G39: Other | H39: Load shedding | I39: Unknown | J39: Subtransmission | M39: Subtransmission
F40: Line upgrade - raising/retensoring | H40: Inter-distributor connection failure | I40: Vegetation | J40: insert description of 'other' | L40: Other | M40: insert description of 'other'
F41: Line upgrade - voltage upgrade | H41: Other | I41: Weather | J41: Network error | L41: Overloads
F42: Line upgrade - capacity | I42: 2 - STPIS Exclusion (3.3)(a) | J42: Switching and protection error | L42: Planned
F43: String spare circuit | I43: 3 - STPIS Exclusion (3.3)(a) | J43: Fire | L43: Network business | M43: Network error
F44: Other | I44: 4 - STPIS Exclusion (3.3)(a) | J44: Other | M44: Switching and protection error
I45: 5 - STPIS Exclusion (3.3)(a) | J45: Dig-in | L45: Third party | M45: Fire
I46: 6 - STPIS Exclusion (3.3)(a) | J46: Unauthorised access | M46: Other
I47: 7 - STPIS Exclusion (3.3)(a) | J47: Vehicle impact | M47: Dig-in
J48: Unknown | M48: Unauthorised access
J49: Blow-in/Fall-in - NSP responsibility | M49: Vehicle impact
J50: Grow-in - NSP responsibility | L50: Unknown | M50: Unknown
J51: Blow-in/Fall-in - Other responsible party | L51: Vegetation | M51: Blow-in/Fall-in - NSP responsibility
J52: Grow-in - Other responsible party | M52: Grow-in - NSP responsibility
M53: Blow-in/Fall-in - Other responsible party
M54: Grow-in - Other responsible party
L55: Weather
L56: 2 - STPIS Exclusion (3.3)(a)
L57: 3 - STPIS Exclusion (3.3)(a)
L58: 4 - STPIS Exclusion (3.3)(a)
L59: 5 - STPIS Exclusion (3.3)(a)
L60: 6 - STPIS Exclusion (3.3)(a)
L61: 7 - STPIS Exclusion (3.3)(a)
B64: CA & RESET RINS TNSP | C64: dms_TNSP_0203_SubstationType | D64: dms_TNSP_020301_ProjectType | E64: dms_TNSP_020301_ProjectTrigger | F64: dms_TNSP_020302_ProjectType | G64: dms_TNSP_0203_ProjectTrigger
C65: Terminal station | D65: New substation establishment | E65: Demand growth | F65: New line on new route - single circuit | G65: Demand growth
C66: Switching station | D66: Capacity upgrade | E66: Voltage issues | F66: New line on new route - dual circuit | G66: Voltage issues
C67: Transmission substation | D67: Voltage upgrade | E67: Reactive power issue | F67: New line on new route - other | G67: Reactive power issue
C68: Other | D68: Other | E68: Fault level issues | F68: Line rebuild over existing route - single circuit | G68: Fault level issues
E69: Net market benefit | F69: Line rebuild over existing route - dual circuit | G69: Net market benefit
E70: Safety | F70: Reconductor - Single circuit | G70: Safety
E71: Environment | F71: Reconductor - Dual circuit | G71: Environment
E72: Other | F72: Reconductor - Other | G72: Other
F73: Line upgrade - raising/retensoring
F74: Line upgrade - voltage upgrade
F75: Line upgrade - capacity
F76: String spare circuit
F77: Other
B81: NAMED RANGES USED IN ETL PROCESS
B83: CA & RESET RINS DNSP ONLY | C83: dms_020303_01_UOM | D83: dms_020501_01_UOM | E83: dms_020501_02_UOM | F83: dms_020501_03_UOM | G83: dms_020501_04_UOM | H83: dms_020701_01_UOM | I83: dms_020701_02_UOM | J83: dms_020701_01_Rows | K83: dms_040102_01_UOM | L83: dms_040102_04_UOM
C84: Circuit line length in km | D84: 0's | E84: 0's | F84: 0's | G84: 0's | H84: km | I84: km | J84: Route line length within zone | K84: 0's | L84: days
C85: Circuit line length in km | D85: 0's | E85: 0's | F85: 0's | G85: 0's | H85: 0's | I85: 0's | J85: Number of maintenance spans | K85: 0's | L85: 0's
C86: Circuit line length in km | D86: MVA added | E86: MVA added | F86: MVA added | G86: MVA added | H86: km | I86: km | J86: Total length of maintenance spans | K86: 0's | L86: $0s
C87: Circuit line length in km | D87: 0's | E87: 0's | F87: 0's | G87: 0's | H87: km | I87: km | J87: Length of vegetation corridors | K87: $0s | L87: 0's
C88: Number | D88: total spend $0s | E88: total spend $0s | F88: total spend $0s | G88: total spend $0s | H88: 0's | I88: 0's | J88: Average number of trees per maintenance span
C89: Number | D89: net circuit km added | E89: net circuit km added | F89: net circuit km added | G89: net circuit km added | H89: years | I89: years | J89: Average frequency of cutting cycle
C90: Number | D90: total spend $0s | E90: total spend $0s | F90: total spend $0s | G90: total spend $0s
D91: net circuit km added | E91: net circuit km added | F91: net circuit km added | G91: net circuit km added
D92: total spend $0s | E92: total spend $0s | F92: total spend $0s | G92: total spend $0s
D93: 0's | F93: $0s
D94: 0's
D95: 0's
D96: $0s
B99: CA & RESET RINS TNSP ONLY | C99: dms_020701_01_UOM
C100: km
C101: 0's
C102: km
C103: 0's
C104: km
C105: metres
C106: years
B109: CA & RESET RINS DNSP & TNSP | C109: dms_020603_01_UOM
C110: 0's
C111: 0's
C112: 0's
C113: 0's
C114: (per cent)
B117: EB & RESET RINS DNSP ONLY | C117: dms_030601_01_UOM | D117: dms_030601_02_UOM | E117: dms_030701_01_UOM | F117: dms_030702_01_UOM | G117: dms_030703_01_UOM
C118: minutes/customer | D118: minutes/customer | E118: Customer / km | F118: % | G118: km
C119: minutes/customer | D119: minutes/customer | E119: MWh/customer | F119: Number of spans
C120: interruptions/customer | D120: interruptions/customer | E120: kVA / customer | F120: Number of spans
C121: interruptions/customer | D121: interruptions/customer | F121: Number of spans
F122: Number of spans
F123: Years
F124: Years
F125: Trees
F126: Trees
F127: Defects
F128: Defects
F129: Spans
F130: km
F131: Spans
C133: WHEN INSERTING COVER SHEET INTO A TNSP FILE - APPLY THESE NAMED RANGES
B134: EB & RESET RINS TNSP ONLY | C134: dms_030601_01_UOM | E134: dms_030701_01_UOM | F134: dms_030702_01_UOM
C135: % | E135: Number of spans | F135: km
C136: number | E136: Years | F136: %
C137: number | E137: Trees | F137: km
C138: % | E138: Defects | F138: number
C139: number | E139: Number of spans
C140: number | E140: km
C141: % | E141: km
C142: number | E142: Number of spans
C143: number
C144: %
C145: number
C146: %
C147: number
C148: %
C149: number
B151: EB & RESET RINS DNSP & TNSP | C151: dms_EB_RAB_PIT
C152: Beginning of year
C153: End of year
C154: End of year
C155: End of year
C156: End of year
C157: End of year
B159: ARR DNSP ONLY | C159: dms_030605_UOM | D159: dms_03060703_UOM | E159: Spare | F159: Spare
C160: number | D160: number
C161: number | D161: number
C162: number | D162: number
C163: number | D163: number
C164: number | D164: (per cent)
C165: number
C166: number
C167: number
C168: number
C169: number
C170: number
C171: number
C172: (per cent)
C173: (per cent)
B175: RFM | C175: dms_Beg | D175: dms_Mid | E175: dms_End
C176: Beginning of year | D176: Mid year | E176: End of Year
B178: PTRM | C178: dms_PTRM_RAB_PIT | D178: dms_PTRM_TAB_PIT | E178: DMS_Xfactor
C179: Beginning of year | D179: Beginning of year | E179: x factors
C180: End of year | D180: End of year
C181: End of year | D181: End of year
C182: End of year | D182: End of year
C183: End of year
B186: STPIS & MIC NAMED RANGES
B188: These "row descriptions" are the column headings in the various templates but become row descriptions in the ETL process
B190: Table 6.3 sustained interruptions - row descriptions | C190: dms_060301_CustNo_Affected_Row | D190: dms_060301_Avg_Duration_Sustained_Int_Row | E190: dms_060301_Effect_unplanned_SAIDI_Row | F190: dms_060301_Effect_unplanned_SAIFI_Row
C191: Number of customers affected by the interruption | D191: Average duration of sustained customer interruption | E191: Effect on unplanned SAIDI | F191: Effect on unplanned SAIFI
B194: Table 6.1 telephone answering - row descriptions and start date | C194: dms_060101_Rows | D194: dms_060102_Rows | E194: dms_060101_StartDateTxt
C195: Total number of calls (after removing excluded events) | D195: Number of calls answered within 30 seconds (after excluding excluded events) | E195: =dms_060701_StartDateTxt -> 1-Jan-2006
B198: Table 6.8.1 - row descriptions | C198: dms_060801_01_Rows | D198: dms_060801_02_Rows | E198: dms_060801_03_Rows | F198: dms_060801_04_Rows
C199: Number of interruptions | D199: Duration of interruptions | E199: Total unplanned minutes off supply | F199: Effect on unplanned MAIFI
B202: Table 7.9.4 - market impact component - row descriptions | C202: dms_070904_01_Rows | D202: without exclusions | E202: with exclusions
B205: These headings (Lists) are determined from the INDEX/MATCH function on the NSP selected on the Business & other details sheet
B207: Table 6.7.1 - daily performance data - unplanned - MAIFI -- row descriptions and header named range values | C207: dms_060701_Feeder_Header_Lvl4 | D207: =INDEX(dms_FeederName_1,MATCH(dms_TradingName,dms_TradingName_List)) -> CBD | E207: =INDEX(dms_FeederName_1,MATCH(dms_TradingName,dms_TradingName_List)) -> CBD | F207: =INDEX(dms_FeederName_2,MATCH(dms_TradingName,dms_TradingName_List)) -> Urban | G207: =INDEX(dms_FeederName_2,MATCH(dms_TradingName,dms_TradingName_List)) -> Urban | H207: =INDEX(dms_FeederName_3,MATCH(dms_TradingName,dms_TradingName_List)) -> Short rural | I207: =INDEX(dms_FeederName_3,MATCH(dms_TradingName,dms_TradingName_List)) -> Short rural | J207: =INDEX(dms_FeederName_4,MATCH(dms_TradingName,dms_TradingName_List)) -> Long rural | K207: =INDEX(dms_FeederName_4,MATCH(dms_TradingName,dms_TradingName_List)) -> Long rural | L207: =IF((INDEX(dms_FeederName_5,MATCH(dms_TradingName,dms_TradingName_List))=0),"Network",(INDEX(dms_FeederName_5,MATCH(dms_TradingName,dms_TradingName_List)))) -> Network | M207: =IF((INDEX(dms_FeederName_5,MATCH(dms_TradingName,dms_TradingName_List))=0),"Network",(INDEX(dms_FeederName_5,MATCH(dms_TradingName,dms_TradingName_List)))) -> Network | N207: Network | O207: Network
C209: dms_060701_Rows | D209: All events | E209: After removing excluded events | F209: All events | G209: After removing excluded events | H209: All events | I209: After removing excluded events | J209: All events | K209: After removing excluded events | L209: All events | M209: After removing excluded events | N209: All events | O209: After removing excluded events
D210: the number of column headings changes from 10 to 12 depending on the number of feeder categories for the NSP
C212: dms_0603_FeederList | D212: =INDEX(dms_FeederName_1,MATCH(dms_TradingName,dms_TradingName_List)) -> CBD | E212: =INDEX(dms_FeederName_2,MATCH(dms_TradingName,dms_TradingName_List)) -> Urban | F212: =INDEX(dms_FeederName_3,MATCH(dms_TradingName,dms_TradingName_List)) -> Short rural | G212: =INDEX(dms_FeederName_4,MATCH(dms_TradingName,dms_TradingName_List)) -> Long rural
B215: Use these to add to specific worksheets in existing files | C215: Use these to add to specific worksheets in existing files
B218: ARRs 6.7 STPIS daily performance | C218: dms_060101_Values | D218: dms_060102_Values | E218: dms_060701_Values
C219: dms_LeapYear
B222: ARR's 6.8 STPIS exclusions | C222: dms_060801_Event_Date | D222: dms_060801_OutageID | E222: dms_060801_FeederID | F222: dms_060801_FeederClass | G222: dms_060801_CauseID | H222: dms_060801_01_Values | I222: dms_060801_02_Values | J222: dms_060801_03_Values | K222: dms_060801_Excl_Cat | L222: dms_060801_04_Values
C223: dms_060801_StartCell
B226: CA 6.3 sustained interruptions | C226: dms_060301_Event_Date | D226: dms_060301_Event_Time | E226: dms_060301_AssetID | F226: dms_060301_FeederClass | G226: dms_060301_Reason | H226: dms_060301_DetailedReason | I226: dms_060301_CustNo_Affected_Values | J226: dms_060301_Avg_Duration_Sustained_Int_Values | K226: dms_060301_Effect_unplanned_SAIDI_Values | L226: dms_060301_Effect_unplanned_SAIFI_Values | M226: dms_060301_MED

Sheet AER lookups (hidden)
B1: AER LOOKUP TABLES
B3: Data in these columns used for data validation and database purposes.
B4: Date last modified: | C4: 2017-01-16 | D4: added (Albury and Victora) for AGN
C5: 2016-10-17 | D5: updated TransGrid's correct legal name, corrected TasNetworks (T) to June financial year
C6: 2017-02-01 | D6: inserted Power and Water, added NRs (dms_FeederCat_1 and dms_FeederCat_2)
C7: 2017-03-03 | D7: inserted AEMO as a business | AB7: FOR ELECTRICITY BUSINESSES ONLY
C8: 2018-03-28 | D8: major changes to accommodate STPIS
C9: Template Version | D9: 5 | AB9: Feeder Types | AF9: TasNetworks (D) | AG9: MAIFI flag | AH9: Feeder Names
AB11: CBD | AC11: Urban | AD11: Short rural | AE11: long rural | AF11: EXTRA
B12: dms_TradingName_List | C12: dms_TradingNameFull_List | D12: dms_ABN_List | E12: dms_JurisdictionList | F12: dms_Sector_List | G12: dms_Segment_List | H12: dms_FormControl_List | I12: dms_RPT_List | J12: dms_RPTMonth_List | K12: dms_CRCPlength_List | L12: dms_FRCPlength_List | M12: dms_PRCPlength_List | N12: dms_663_List | O12: dms_DeterminationRef_List | P12: dms_Addr1_List | Q12: dms_Addr2_List | R12: dms_Suburb_List | S12: dms_State_List | T12: dms_PostCode_List | U12: dms_PAddr1_List | V12: dms_PAddr2_List | W12: dms_PSuburb_List | X12: dms_PState_List | Y12: dms_PPostCode_List | Z12: dms_ContactName1_List | AA12: dms_ContactPh1_List | AB12: dms_ContactEmail_List | AC12: dms_CBD_flag | AD12: dms_Urban_flag | AE12: dms_ShortRural_flag | AF12: dms_LongRural_flag | AG12: dms_FeederType_5_flag | AH12: dms_MAIFI_flag_List | AI12: dms_FeederName_1 | AJ12: dms_FeederName_2 | AK12: dms_FeederName_3 | AL12: dms_FeederName_4 | AM12: dms_FeederName_5 | AN12: dms_Public_Lighting_List | AO12: Column1
B13: ActewAGL Distribution | C13: ActewAGL Distribution | D13: 76670568688 | E13: ACT | F13: Electricity | G13: Distribution | H13: Revenue cap | I13: Financial | J13: June | K13: 5 | L13: 5 | M13: 5 | N13: 5 | O13: 2014-19 Distribution Determination | P13: 40 Bunda Street | R13: CANBERRA | S13: ACT | T13: 2600 | U13: GPO BOX 366 | W13: CANBERRA | X13: ACT | Y13: 2601 | Z13: Robert Walker | AA13: 02 6248 3847 | AB13: robert.walker@actewagle.com.au | AC13: NO | AD13: YES | AE13: YES | AF13: NO | AG13: NO | AH13: NO | AI13: CBD | AJ13: Urban | AK13: Short rural | AL13: Long rural | AN13: YES | AO13: ActewAGL Distribution
B14: ActewAGL Distribution (Tx Assets) | C14: ActewAGL Distribution (Tx Assets) | D14: 76670568688 | E14: ACT | F14: Electricity | G14: Distribution | H14: Revenue cap | I14: Financial | J14: June | K14: 5 | L14: 5 | M14: 5 | N14: 5 | O14: distribution determination | P14: 40 Bunda Street | R14: CANBERRA | S14: ACT | T14: 2600 | U14: GPO BOX 366 | W14: CANBERRA | X14: ACT | Y14: 2601 | Z14: Robert Walker | AA14: 02 6248 3847 | AB14: robert.walker@actewagle.com.au | AC14: NO | AD14: YES | AE14: YES | AF14: NO | AG14: NO | AH14: NO | AI14: CBD | AJ14: Urban | AK14: Short rural | AL14: Long rural | AN14: NO | AO14: ActewAGL Distribution (Tx Assets)
B15: ActewAGL Gas | C15: ActewAGL Gas | D15: 76670568688 | E15: ACT | F15: Gas | G15: Distribution | H15: Weighted average price cap | I15: Financial | J15: June | K15: 5 | L15: 5 | M15: 5 | N15: x | P15: 40 Bunda Street | R15: CANBERRA | S15: ACT | T15: 2600 | U15: GPO BOX 366 | W15: CANBERRA | X15: ACT | Y15: 2601 | Z15: Philip Deamer | AA15: 02 6248 3438 | AB15: GasAAReview@actewagl.com.au | AC15: NO | AD15: NO | AE15: NO | AF15: NO | AG15: NO | AH15: - | AI15: CBD | AJ15: Urban | AK15: Short rural | AL15: Long rural | AN15: NO | AO15: ActewAGL Gas
B16: AEMO | C16: Australian Energy Market Operator Ltd | D16: 94072010327 | E16: Vic | F16: Electricity | G16: Transmission | H16: - | I16: Financial | J16: March | K16: 5 | L16: 5 | M16: 5 | N16: x | O16: - | P16: Level 22 | Q16: 530 Collins Street | R16: MELBOURNE | S16: Vic | T16: 3000 | U16: GPO Box 2008 | W16: MELBOURNE | X16: Vic | Y16: 3001 | AC16: NO | AD16: NO | AE16: NO | AF16: NO | AG16: NO | AH16: - | AI16: CBD | AJ16: Urban | AK16: Short rural | AL16: Long rural | AN16: NO | AO16: AEMO
B17: AGN (Albury and Victoria) | C17: Australian Gas Networks Limited (reporting data for Albury and Victoria) | D17: 19078551685 | E17: Vic | F17: Gas | G17: Distribution | H17: Weighted average price cap | I17: Calendar | J17: December | K17: 5 | L17: 5 | M17: 5 | N17: x | P17: Level 6 | Q17: 400 King William Street | R17: ADELAIDE | S17: SA | T17: 5000 | U17: PO Box 6468 | V17: Halifax Street | W17: ADELAIDE | X17: SA | Y17: 5000 | Z17: Craig de Laine | AA17: 08 8418 1129 | AB17: craig.delaine@agn.com.au | AC17: NO | AD17: NO | AE17: NO | AF17: NO | AG17: NO | AH17: - | AI17: CBD | AJ17: Urban | AK17: Short rural | AL17: Long rural | AN17: NO | AO17: AGN (Albury)
B18: AGN (Albury) | C18: Australian Gas Networks Limited (reporting data for Albury) | D18: 19078551685 | E18: Vic | F18: Gas | G18: Distribution | H18: Weighted average price cap | I18: Calendar | J18: December | K18: 5 | L18: 5 | M18: 5 | N18: x | P18: Level 6 | Q18: 400 King William Street | R18: ADELAIDE | S18: SA | T18: 5000 | U18: PO Box 6468 | V18: Halifax Street | W18: ADELAIDE | X18: SA | Y18: 5000 | Z18: Craig de Laine | AA18: 08 8418 1129 | AB18: craig.delaine@agn.com.au | AC18: NO | AD18: NO | AE18: NO | AF18: NO | AG18: NO | AH18: - | AI18: CBD | AJ18: Urban | AK18: Short rural | AL18: Long rural | AN18: NO
B19: AGN (SA) | C19: Australian Gas Networks Limited (reporting data for SA) | D19: 19078551685 | E19: SA | F19: Gas | G19: Distribution | H19: Weighted average price cap | I19: Financial | J19: June | K19: 5 | L19: 5 | M19: 5 | N19: 5 | O19: distribution determination | P19: Level 6 | Q19: 400 King William Street | R19: ADELAIDE | S19: SA | T19: 5000 | U19: PO Box 6468 | V19: Halifax Street | W19: ADELAIDE | X19: SA | Y19: 5000 | Z19: Craig de Laine | AA19: 08 8418 1129 | AB19: craig.delaine@agn.com.au | AC19: NO | AD19: NO | AE19: NO | AF19: NO | AG19: NO | AH19: - | AI19: CBD | AJ19: Urban | AK19: Short rural | AL19: Long rural | AN19: NO | AO19: AGN (SA)
B20: AGN (Victoria) | C20: Australian Gas Networks Limited (reporting data for Victoria) | D20: 19078551685 | E20: Vic | F20: Gas | G20: Distribution | H20: Weighted average price cap | I20: Calendar | J20: December | K20: 5 | L20: 5 | M20: 5 | N20: x | P20: Level 6 | Q20: 400 King William Street | R20: ADELAIDE | S20: SA | T20: 5000 | U20: PO Box 6468 | V20: Halifax Street | W20: ADELAIDE | X20: SA | Y20: 5000 | Z20: Craig de Laine | AA20: 08 8418 1129 | AB20: craig.delaine@agn.com.au | AC20: NO | AD20: NO | AE20: NO | AF20: NO | AG20: NO | AH20: - | AI20: CBD | AJ20: Urban | AK20: Short rural | AL20: Long rural | AN20: NO | AO20: AGN (Victoria)
B21: Amadeus | C21: APT Pipelines (NT) Pty Ltd | D21: 39009737393 | E21: NT | F21: Gas | G21: Transmission | H21: Weighted average price cap | I21: Financial | J21: June | K21: 5 | L21: 5 | M21: 5 | N21: x | O21: n/a | P21: Level 19, HSBC Building | Q21: 580 George Street | R21: SYDNEY | S21: NSW | T21: 2000 | U21: Level 19, HSBC Building | V21: 580 George Street | W21: SYDNEY | X21: NSW | Y21: 2000 | Z21: Alexandra Curran | AA21: 02 9275 0020 | AB21: alexandra.curran@apa.com.au | AC21: NO | AD21: NO | AE21: NO | AF21: NO | AG21: NO | AH21: - | AI21: CBD | AJ21: Urban | AK21: Short rural | AL21: Long rural | AN21: NO | AO21: Amadeus
B22: APA GasNet | C22: APA GasNet Australia (Operations) Pty Ltd | D22: 065083009 | E22: Vic | F22: Gas | G22: Transmission | H22: Weighted average price cap | I22: Calendar | J22: December | K22: 5 | L22: 5 | M22: 5 | N22: x | P22: Level 19, HSBC Building | Q22: 580 George Street | R22: SYDNEY | S22: NSW | T22: 2000 | U22: PO Box R41 | W22: ROYAL EXCHANGE | X22: NSW | Y22: 1225 | Z22: Alexandra Curran | AA22: 02 9275 0020 | AB22: alexandra.curran@apa.com.au | AC22: NO | AD22: NO | AE22: NO | AF22: NO | AG22: NO | AH22: - | AI22: CBD | AJ22: Urban | AK22: Short rural | AL22: Long rural | AN22: NO | AO22: APA GasNet
B23: Ausgrid | C23: Ausgrid | D23: 78508211731 | E23: NSW | F23: Electricity | G23: Distribution | H23: Revenue cap | I23: Financial | J23: June | K23: 5 | L23: 5 | M23: 5 | N23: 5 | O23: 2014-19 Distribution Determination | P23: 570 George St | R23: SYDNEY | S23: NSW | T23: 2000 | U23: GPO Box 4009 | W23: SYDNEY | X23: NSW | Y23: 2001 | Z23: John Thomson | AA23: 02 9269 2312 | AB23: john.thomson@ausgrid.com.au | AC23: YES | AD23: YES | AE23: YES | AF23: YES | AG23: NO | AH23: NO | AI23: CBD | AJ23: Urban | AK23: Short rural | AL23: Long rural | AN23: YES | AO23: Ausgrid
B24: Ausgrid (Tx Assets) | C24: Ausgrid (Tx Assets) | D24: 67505337385 | E24: NSW | F24: Electricity | G24: Distribution | H24: Revenue cap | I24: Financial | J24: June | K24: 5 | L24: 5 | M24: 5 | N24: 5 | O24: distribution determination | P24: 570 George St | R24: SYDNEY | S24: NSW | T24: 2000 | U24: GPO Box 4009 | W24: SYDNEY | X24: NSW | Y24: 2001 | Z24: John Thomson | AA24: 02 9269 2312 | AB24: john.thomson@ausgrid.com.au | AC24: YES | AD24: YES | AE24: YES | AF24: YES | AG24: NO | AH24: NO | AI24: CBD | AJ24: Urban | AK24: Short rural | AL24: Long rural | AN24: NO | AO24: Ausgrid (Tx Assets)
B25: AusNet (D) | C25: AusNet Electricity Services Pty Ltd | D25: 91064651118 | E25: Vic | F25: Electricity | G25: Distribution | H25: Revenue cap | I25: Calendar | J25: December | K25: 5 | L25: 5 | M25: 5 | N25: 2 | O25: 2016-20 Distribution Determination | P25: Level 32 | Q25: 2 Southbank Boulevard | R25: SOUTHBANK | S25: Vic | T25: 3006 | U25: Locked Bag 14051 | W25: MELBOURNE CITY MAIL CENTRE | X25: Vic | Y25: 8001 | Z25: Thomas Hall | AB25: thomas. hall@ausnetservices.com.au | AC25: NO | AD25: YES | AE25: YES | AF25: YES | AG25: NO | AH25: YES | AI25: CBD | AJ25: Urban | AK25: Short rural | AL25: Long rural | AN25: YES | AO25: AusNet (D)
B26: AusNet (Gas) | C26: AusNet Gas Services | D26: 086015036 | E26: Vic | F26: Gas | G26: Distribution | H26: Weighted average price cap | I26: Calendar | J26: December | K26: 5 | L26: 5 | M26: 5 | N26: X | P26: Level 19, HSBC Building | Q26: 580 George Street | R26: SYDNEY | S26: NSW | T26: 2000 | U26: PO Box R41 | W26: ROYAL EXCHANGE | X26: NSW | Y26: 1225 | Z26: Alexandra Curran | AA26: 02 9275 0020 | AB26: alexandra.curran@apa.com.au | AC26: NO | AD26: NO | AE26: NO | AF26: NO | AG26: NO | AH26: - | AI26: CBD | AJ26: Urban | AK26: Short rural | AL26: Long rural | AN26: NO | AO26: AusNet (Gas)
B27: AusNet (T) | C27: Ausnet Services (Transmission) Ltd | D27: 48116124362 | E27: Vic | F27: Electricity | G27: Transmission | H27: Revenue cap | I27: Financial | J27: March | K27: 5 | L27: 5 | M27: 5 | N27: 2 | O27: transmission determination | P27: Level 32 | Q27: 2 Southbank Boulevard | R27: SOUTHBANK | S27: Vic | T27: 3006 | U27: Locked Bag 14051 | W27: MELBOURNE CITY MAIL CENTRE | X27: Vic | Y27: 8001 | Z27: Clare Thompson | AA27: 03 9695 6670 | AB27: clare.e.thompson@ausnetservices.com.au | AC27: NO | AD27: NO | AE27: NO | AF27: NO | AG27: NO | AH27: - | AI27: CBD | AJ27: Urban | AK27: Short rural | AL27: Long rural | AN27: NO | AO27: AusNet (T)
B28: Australian Distribution Co. | C28: Australian Distribution Co. | D28: 11222333444 | E28: - | F28: Electricity | G28: Distribution | H28: Revenue cap | I28: Financial | J28: June | K28: 5 | L28: 5 | M28: 5 | N28: 2 | O28: distribution determination | P28: 123 Straight Street | R28: SYDNEY | S28: NSW | T28: 2000 | U28: PO Box 123 | W28: SYDNEY | X28: NSW | Y28: 2000 | Z28: Bob Smith | AA28: 02 1234 5678 | AB28: bob@auselec.net.au | AC28: YES | AD28: YES | AE28: YES | AF28: YES | AG28: NO | AH28: NO | AI28: CBD | AJ28: Urban | AK28: Short rural | AL28: Long rural | AN28: YES | AO28: Australian Distribution Co.
B29: Australian Distribution Co. (Gas) | C29: Australian Gas Distribution Co. | D29: 11222333444 | E29: NSW | F29: Gas | G29: Distribution | H29: Weighted average price cap | I29: Financial | J29: June | K29: 5 | L29: 5 | M29: 5 | P29: 123 Straight Street | R29: SYDNEY | S29: NSW | T29: 2000 | U29: PO Box 123 | W29: SYDNEY | X29: NSW | Y29: 2000 | Z29: Bob Smith | AA29: 02 1234 5678 | AB29: bob@auselec.net.au | AC29: NO | AD29: NO | AE29: NO | AF29: NO | AG29: NO | AH29: - | AI29: CBD | AJ29: Urban | AK29: Short rural | AL29: Long rural | AN29: NO | AO29: Australian Distribution Co. (Vic)
B30: Australian Distribution Co. (Vic) | C30: Australian Distribution Co. (Victoria) | D30: 11222333444 | E30: Vic | F30: Electricity | G30: Distribution | H30: Revenue cap | I30: Calendar | J30: December | K30: 5 | L30: 5 | M30: 5 | N30: 2 | O30: distribution determination | P30: 123 Straight Street | R30: MELBOURNE | S30: Vic | T30: 3000 | U30: PO Box 123 | W30: MELBOURNE | X30: Vic | Y30: 3000 | Z30: Bob Smith | AA30: 02 1234 5678 | AB30: bob@auselec.net.au | AC30: NO | AD30: NO | AE30: NO | AF30: NO | AG30: NO | AH30: YES | AI30: CBD | AJ30: Urban | AK30: Short rural | AL30: Long rural | AN30: YES | AO30: Australian Distribution Co. (Vic)
B31: Australian Transmission Co. | C31: Australian Transmission Co. | D31: 11222333444 | E31: - | F31: Electricity | G31: Transmission | H31: Revenue cap | I31: Financial | J31: June | K31: 5 | L31: 5 | M31: 5 | N31: 5 | O31: transmission determination | P31: 123 Straight Street | R31: SYDNEY | S31: NSW | T31: 2000 | U31: PO Box 123 | W31: SYDNEY | X31: NSW | Y31: 2000 | Z31: Bob Smith | AA31: 02 1234 5678 | AB31: bob@auselec.net.au | AC31: NO | AD31: NO | AE31: NO | AF31: NO | AG31: NO | AH31: - | AI31: CBD | AJ31: Urban | AK31: Short rural | AL31: Long rural | AN31: NO | AO31: Australian Transmission Co.
B32: Central Ranges Pipeline (D) | C32: Central Ranges Pipeline Pty Ltd | D32: 108218355 | E32: NSW | F32: Gas | G32: Distribution | H32: Weighted average price cap | I32: Financial | J32: June | K32: 15 | L32: 5 | M32: 5 | N32: 5 | O32: distribution determination | P32: Level 19 | Q32: 580 George Street | R32: SYDNEY | S32: NSW | T32: 2000 | U32: PO Box R41 | W32: ROYAL EXCHANGE | X32: NSW | Y32: 1225 | Z32: Scott Young | AA32: 02 9275 0031 | AB32: scott.young@apa.com.au | AC32: NO | AD32: NO | AE32: NO | AF32: NO | AG32: NO | AH32: - | AI32: CBD | AJ32: Urban | AK32: Short rural | AL32: Long rural | AN32: NO
B33: Central Ranges Pipeline (T) | C33: Central Ranges Pipeline Pty Ltd | D33: 108218355 | E33: NSW | F33: Gas | G33: Distribution | H33: Weighted average price cap | I33: Financial | J33: June | K33: 14 | L33: 5 | M33: 5 | N33: 5 | O33: transmission determination | P33: Level 19 | Q33: 580 George Street | R33: SYDNEY | S33: NSW | T33: 2000 | U33: PO Box R41 | W33: ROYAL EXCHANGE | X33: NSW | Y33: 1225 | Z33: Scott Young | AA33: 02 9275 0031 | AB33: scott.young@apa.com.au | AC33: NO | AD33: NO | AE33: NO | AF33: NO | AG33: NO | AH33: - | AI33: CBD | AJ33: Urban | AK33: Short rural | AL33: Long rural | AN33: NO
B34: CitiPower | C34: CitiPower | D34: 76064651056 | E34: Vic | F34: Electricity | G34: Distribution | H34: Revenue cap | I34: Calendar | J34: December | K34: 5 | L34: 5 | M34: 5 | N34: 2 | O34: 2016-20 Distribution Determination | P34: 40 Market Street | R34: MELBOURNE | S34: Vic | T34: 3000 | U34: Locked Bag 14090 | W34: MELBOURNE | X34: Vic | Y34: 8001 | Z34: Hannah Williams | AA34: 03 9683 4088 | AB34: hwilliams@powercor.com.au | AC34: YES | AD34: YES | AE34: NO | AF34: NO | AG34: NO | AH34: YES | AI34: CBD | AJ34: Urban | AK34: Short rural | AL34: Long rural | AN34: YES | AO34: CitiPower
B35: Directlink | C35: Directlink | D35: 16779340889 | E35: Qld | F35: Electricity | G35: Transmission | H35: Revenue cap | I35: Financial | J35: June | K35: 5 | L35: 5 | M35: 5 | N35: 5 | O35: transmission determination | P35: Level 25 | Q35: 580 George Street | R35: SYDNEY | S35: NSW | T35: 2000 | U35: PO Box R41 | W35: ROYAL EXCHANGE | X35: NSW | Y35: 1225 | Z35: Mark Allen | AA35: 02 9275 0010 | AB35: mark.allen@apa.com.au | AC35: NO | AD35: NO | AE35: NO | AF35: NO | AG35: NO | AH35: - | AI35: CBD | AJ35: Urban | AK35: Short rural | AL35: Long rural | AN35: NO | AO35: Directlink
B36: ElectraNet | C36: ElectraNet | D36: 41094482416 | E36: SA | F36: Electricity | G36: Transmission | H36: Revenue cap | I36: Financial | J36: June | K36: 5 | L36: 5 | M36: 5 | N36: 5 | O36: transmission determination | P36: 52-55 East Terrace | Q36: Rymill Park | R36: ADELAIDE | S36: SA | T36: 5000 | U36: PO Box 7096 | V36: Hutt Street Post Office | W36: ADELAIDE | X36: SA | Y36: 5000 | Z36: Bill Jackson | AA36: 08 8404 7969 | AB36: jackson.bill@electranet.com.au | AC36: NO | AD36: NO | AE36: NO | AF36: NO | AG36: NO | AH36: - | AI36: CBD | AJ36: Urban | AK36: Short rural | AL36: Long rural | AN36: NO | AO36: ElectraNet
B37: Endeavour Energy | C37: Endeavour Energy | D37: 11247365823 | E37: NSW | F37: Electricity | G37: Distribution | H37: Revenue cap | I37: Financial | J37: June | K37: 5 | L37: 5 | M37: 5 | N37: 5 | O37: 2014-19 Distribution Determination | P37: 51 Huntingwood Drive | R37: HUNTINGWOOD | S37: NSW | T37: 2148 | U37: PO Box 811 | W37: SEVEN HILLS | X37: NSW | Y37: 1730 | Z37: Jon Hocking | AA37: 02 9853 4386 / 0407 348 156 | AB37: Jon.Hocking@Endeavourenergy.com.au | AC37: NO | AD37: YES | AE37: YES | AF37: YES | AG37: NO | AH37: NO | AI37: CBD | AJ37: Urban | AK37: Short rural | AL37: Long rural | AN37: YES | AO37: Endeavour Energy
B38: Energex | C38: Energex | D38: 40078849055 | E38: Qld | F38: Electricity | G38: Distribution | H38: Revenue cap | I38: Financial | J38: June | K38: 5 | L38: 5 | M38: 5 | N38: 5 | O38: 2015-20 Distribution Determination | P38: 26 Reddacliff Street | R38: NEWSTEAD | S38: Qld | T38: 4006 | U38: 26 Reddacliff Street | W38: NEWSTEAD | X38: QLD | Y38: 4006 | Z38: Jenny Doyle, Group Manager Regulatory Affairs | AA38: (07) 3851 6416 | AB38: jenny.doyle@ergon.com.au | AC38: YES | AD38: YES | AE38: YES | AF38: NO | AG38: NO | AH38: NO | AI38: CBD | AJ38: Urban | AK38: Short rural | AL38: Long rural | AN38: YES | AO38: Energex
B39: Ergon Energy | C39: Ergon Energy | D39: 50087646062 | E39: Qld | F39: Electricity | G39: Distribution | H39: Revenue cap | I39: Financial | J39: June | K39: 5 | L39: 5 | M39: 5 | N39: 5 | O39: 2015-20 Distribution Determination | P39: 22 Walker Street | R39: TOWNSVILLE | S39: Qld | T39: 4810 | U39: Po Box 264 | W39: FORTITUDE VALLEY | X39: QLD | Y39: 4006 | Z39: Jenny Doyle, Group Manager Regulatory Affairs | AA39: (07) 3851 6416 | AB39: jenny.doyle@ergon.com.au | AC39: NO | AD39: YES | AE39: YES | AF39: YES | AG39: NO | AH39: NO | AI39: CBD | AJ39: Urban | AK39: Short rural | AL39: Long rural | AN39: YES | AO39: Ergon Energy
B40: Essential Energy | C40: Essential Energy | D40: 37428185226 | E40: NSW | F40: Electricity | G40: Distribution | H40: Revenue cap | I40: Financial | J40: June | K40: 5 | L40: 5 | M40: 5 | N40: 5 | O40: 2014-19 Distribution Determination | P40: 8 Buller Street | R40: PORT MACQUARIE | S40: NSW | T40: 2444 | U40: PO Box 5730 | W40: PORT MACQUARIE | X40: NSW | Y40: 2444 | Z40: Catherine Waddell | AA40: 02 6338 3553 | AB40: catherine.waddell@essentialenergy.com.au | AC40: NO | AD40: NO | AE40: YES | AF40: YES | AG40: NO | AH40: NO | AI40: CBD | AJ40: Urban | AK40: Short rural | AL40: Long rural | AN40: YES | AO40: Essential Energy
B41: Jemena Electricity | C41: Jemena Electricity | D41: 82064651083 | E41: Vic | F41: Electricity | G41: Distribution | H41: Revenue cap | I41: Calendar | J41: December | K41: 5 | L41: 5 | M41: 5 | N41: 2 | O41: 2016-20 Distribution Determination | P41: Level 16 | Q41: 567 Collins Street | R41: MELBOURNE | S41: Vic | T41: 3000 | U41: PO Box 16182 | W41: MELBOURNE | X41: Vic | Y41: 8001 | Z41: Matthew Serpell | AA41: 03 9173 8231 | AB41: matthew.serpell@jemena.com.au | AC41: NO | AD41: YES | AE41: YES | AF41: NO | AG41: NO | AH41: YES | AI41: CBD | AJ41: Urban | AK41: Short rural | AL41: Long rural | AN41: YES | AO41: Jemena Electricity
B42: JGN | C42: Jemena Gas Networks (NSW) Ltd | D42: 003 004 322 | E42: NSW | F42: Gas | G42: Distribution | H42: Weighted average price cap | I42: Financial | J42: June | K42: 5 | L42: 5 | M42: 5 | Z42: please provide contact details | AC42: NO | AD42: NO | AE42: NO | AF42: NO | AG42: NO | AH42: - | AI42: CBD | AJ42: Urban | AK42: Short rural | AL42: Long rural | AN42: NO | AO42: JGN
B43: Multinet Gas | C43: Multinet Gas (DB No.1) Pty Ltd (ACN 086 026 986), Multinet Gas (DB No.2) Pty Ltd (ACN 086 230 122) | D43: 086026986 | E43: Vic | F43: Gas | G43: Distribution | H43: Weighted average price cap | I43: Calendar | J43: December | K43: 5 | L43: 5 | M43: 5 | N43: x | P43: 43-45 Centreway | R43: MT WAVERLEY | S43: Vic | T43: 3149 | Z43: Andrew Schille | AA43: 03 8846 9860 | AB43: andrew.schille@ue.com.au | AC43: NO | AD43: NO | AE43: NO | AF43: NO | AG43: NO | AH43: - | AI43: CBD | AJ43: Urban | AK43: Short rural | AL43: Long rural | AN43: NO | AO43: Multinet Gas
B44: Murraylink | C44: Murraylink | D44: 79181207909 | E44: SA | F44: Electricity | G44: Transmission | H44: Revenue cap | I44: Financial | J44: June | K44: 5 | L44: 5 | M44: 5 | N44: 5 | O44: transmission determination | P44: Level 19 | Q44: 580 George Street | R44: SYDNEY | S44: NSW | T44: 2000 | U44: PO Box R41 | W44: ROYAL EXCHANGE | X44: NSW | Y44: 1225 | Z44: Scott Young | AA44: 02 9275 0031 | AB44: scott.young@apa.com.au | AC44: NO | AD44: NO | AE44: NO | AF44: NO | AG44: NO | AH44: - | AI44: CBD | AJ44: Urban | AK44: Short rural | AL44: Long rural | AN44: NO | AO44: Murraylink
B45: Power and Water | C45: Power and Water Corporation | D45: 15947352360 | E45: NT | F45: Electricity | G45: Distribution | H45: Revenue cap | I45: Financial | J45: June | K45: 5 | L45: 5 | M45: 5 | N45: x | O45: distribution determination | P45: GPO Box 1921 | R45: DARWIN | S45: NT | T45: 801 | U45: GPO Box 1921 | W45: DARWIN | X45: NT | Y45: 801 | Z45: Lucy Moon | AA45: 08 8924 5822 | AB45: Lucy.Moon@powerwater.com.au | AC45: YES | AD45: YES | AE45: YES | AF45: YES | AG45: NO | AH45: NO | AI45: CBD | AJ45: Urban | AK45: Short rural | AL45: Long rural | AN45: NO | AO45: Power and Water
B46: Powercor Australia | C46: Powercor Australia | D46: 89064651109 | E46: Vic | F46: Electricity | G46: Distribution | H46: Revenue cap | I46: Calendar | J46: December | K46: 5 | L46: 5 | M46: 5 | N46: 2 | O46: 2016-20 Distribution Determination | P46: 40 Market Street | R46: MELBOURNE | S46: Vic | T46: 3000 | U46: Locked bag 14090 | W46: MELBOURNE | X46: Vic | Y46: 8001 | Z46: Hannah Williams | AA46: 03 9683 4088 | AB46: hwilliams@powercor.com.au | AC46: NO | AD46: NO | AE46: YES | AF46: YES | AG46: NO | AH46: YES | AI46: CBD | AJ46: Urban | AK46: Short rural | AL46: Long rural | AN46: YES | AO46: Powercor Australia
B47: Powerlink | C47: Queensland Electricity Transmission Corporation Limited trading as Powerlink Queensland | D47: 82078849233 | E47: Qld | F47: Electricity | G47: Transmission | H47: Revenue cap | I47: Financial | J47: June | K47: 5 | L47: 5 | M47: 5 | N47: 5 | O47: transmission determination | P47: 33 Harold St | R47: VIRGINIA | S47: Qld | T47: 4014 | U47: PO Box 1193 | W47: VIRGINIA | X47: QLD | Y47: 4014 | Z47: Jennifer Harris | AA47: 07 3860 2667 | AB47: jharris@powerlink.com.au | AC47: NO | AD47: NO | AE47: NO | AF47: NO | AG47: NO | AH47: - | AI47: CBD | AJ47: Urban | AK47: Short rural | AL47: Long rural | AN47: NO | AO47: Powerlink
B48: Roma to Brisbane Pipeline | C48: APT Petroleum Pipelines Limited t/a Roma to Brisbane Pipeline | D48: 009 737 393 | E48: Qld | F48: Gas | G48: Transmission | H48: Weighted average price cap | I48: Financial | J48: June | K48: 5 | L48: 5 | M48: 5 | N48: x | O48: n/a | P48: 580 George Street | R48: SYDNEY | S48: NSW | T48: 2000 | U48: PO Box R41 | W48: ROYAL EXCHANGE | X48: NSW | Y48: 1225 | Z48: Mark Allen | AA48: 02 9275 0010 | AB48: mark.allen@apa.com.au | AC48: NO | AD48: NO | AE48: NO | AF48: NO | AG48: NO | AH48: - | AI48: CBD | AJ48: Urban | AK48: Short rural | AL48: Long rural | AN48: NO | AO48: Roma to Brisbane Pipeline
B49: SA Power Networks | C49: SA Power Networks | D49: 13332330749 | E49: SA | F49: Electricity | G49: Distribution | H49: Revenue cap | I49: Financial | J49: June | K49: 5 | L49: 5 | M49: 5 | N49: 5 | O49: 2015-20 Distribution Determination | P49: 1 Anzac Highway | R49: KESWICK | S49: SA | T49: 5035 | U49: GPO Box 77 | W49: ADELAIDE | X49: SA | Y49: 5000 | Z49: Richard Sibly | AA49: 08 8404 5613 | AB49: richard.sibly@sapowernetworks.com.au | AC49: NO | AD49: NO | AE49: YES | AF49: YES | AG49: NO | AH49: NO | AI49: CBD | AJ49: Urban | AK49: Short rural | AL49: Long rural | AN49: NO | AO49: SA Power Networks
B50: TasNetworks (D) | C50: TasNetworks (D) | D50: 24167357299 | E50: Tas | F50: Electricity | G50: Distribution | H50: Revenue cap | I50: Financial | J50: June | K50: 5 | L50: 5 | M50: 5 | N50: 5 | O50: distribution determination | P50: 1-7 Maria Street | R50: LENAH VALLEY | S50: Tas | T50: 7008 | U50: PO Box 606 | W50: MOONAH | X50: Tas | Y50: 7009 | Z50: Tim Astley | AA50: 03 6271 6151 | AB50: tim.astley@tasnetworks.com.au | AC50: YES | AD50: YES | AE50: YES | AF50: YES | AG50: YES | AH50: NO | AI50: Critical Infrastructure | AJ50: High density commercial | AK50: Urban | AL50: High density rural | AM50: Low density rural | AN50: YES | AO50: TasNetworks (D)
B51: TasNetworks (T) | C51: TasNetworks (T) | D51: 24167357299 | E51: Tas | F51: Electricity | G51: Transmission | H51: Revenue cap | I51: Financial | J51: June | K51: 5 | L51: 5 | M51: 5 | N51: 5 | O51: transmission determination | P51: 1-7 Maria Street | R51: LENAH VALLEY | S51: Tas | T51: 7008 | U51: PO Box 606 | W51: MOONAH | X51: Tas | Y51: 7009 | Z51: Tim Astley | AA51: 03 6271 6151 | AB51: tim.astley@tasnetworks.com.au | AC51: NO | AD51: NO | AE51: NO | AF51: NO | AG51: NO | AH51: - | AI51: CBD | AJ51: Urban | AK51: Short rural | AL51: Long rural | AN51: NO | AO51: TasNetworks (T)
B52: TransGrid | C52: NSW Electricity Networks Operations Pty Ltd trading as TransGrid | D52: 70 250 995 390 | E52: NSW | F52: Electricity | G52: Transmission | H52: Revenue cap | I52: Financial | J52: June | K52: 4 | L52: 5 | M52: 5 | N52: 5 | O52: transmission determination | P52: 180 Thomas Street | R52: SYDNEY | S52: NSW | T52: 2000 | U52: PO Box A1000 | W52: SYDNEY SOUTH | X52: NSW | Y52: 1235 | Z52: Garrie Chubb | AA52: 0408 210 221 | AB52: garrie.chubb@transgrid.com.au | AC52: NO | AD52: NO | AE52: NO | AF52: NO | AG52: NO | AH52: - | AI52: CBD | AJ52: Urban | AK52: Short rural | AL52: Long rural | AN52: NO | AO52: TransGrid
B53: United Energy | C53: United Energy | D53: 70064651029 | E53: Vic | F53: Electricity | G53: Distribution | H53: Revenue cap | I53: Calendar | J53: December | K53: 5 | L53: 5 | M53: 5 | N53: 2 | O53: 2016-20 Distribution Determination | P53: 43-45 Centreway | R53: MOUNT WAVERLEY | S53: Vic | T53: 3149 | U53: PO Box 449 | W53: MOUNT WAVERLEY | X53: Vic | Y53: 3170 | Z53: Mathew Abraham | AA53: 03 8846 9758 | AB53: mathew.abraham@ue.com.au | AC53: NO | AD53: NO | AE53: YES | AF53: NO | AG53: NO | AH53: YES | AI53: CBD | AJ53: Urban | AK53: Short rural | AL53: Long rural | AN53: YES | AO53: United Energy
B58: The Reg Year Ending (dms_RYE) must be set to the last year of the regulatory period. For forecast data is is usually (FRCP_y5) for actual it is a single year (CRY). For historical actual data the RYE will need to be set manually in the business details sheet by setting the dms_Multiyear_flag to 1 and putting the correct value in 'dms_Specified_FinalYear. See cells C67:C68
B59: dms_Model_List | C59: dms_Model_Name_Format1 | D59: dms_Worksheet_List | E59: dms_Model_Span_List
B60: ARR | C60: Annual Reporting | D60: =IF(dms_MultiYear_ResponseFlag="yes","RECAST HISTORICAL ANNUAL REPORTING","ANNUAL REPORTING") -> RECAST HISTORICAL ANNUAL REPORTING | E60: 1
B61: CA | C61: Category Analysis | D61: =IF(dms_MultiYear_ResponseFlag="yes","RECAST HISTORICAL CATEGORY ANALYSIS","CATEGORY ANALYSIS") -> RECAST HISTORICAL CATEGORY ANALYSIS | E61: 1
B62: CESS | C62: Capitlal Expenditure | D62: CAPITLAL EXPENDITURE SHARING SCHEMING | E62: 5
B63: CPI | C63: CPI | D63: CPI | E63: 5
B64: EB | C64: Economic Benchmarking | D64: =IF(dms_MultiYear_ResponseFlag="yes","RECAST HISTORICAL ECONOMIC BENCHMARKING - CALENDAR YEARS","ECONOMIC BENCHMARKING") -> RECAST HISTORICAL ECONOMIC BENCHMARKING - CALENDAR YEARS | E64: 1
B65: Pricing | C65: Pricing Proposal | D65: PRICING PROPOSAL | E65: 5
B66: PTRM | C66: Post Tax Revenue Model | D66: POST TAX REVENUE MODEL | E66: 5
B67: Reset | C67: Regulatory Reporting (Reset) | D67: REGULATORY REPORTING STATEMENT | E67: 5
B68: RFM | C68: Roll Forward Model | D68: ROLL FORWARD MODEL | E68: 5
B69: WACC | C69: Weighted Average Cost of Capital | D69: WEIGHTED AVERAGE COST OF CAPITAL | E69: 1
B73: Financial | C73: Calendar | E73: PREVIOUS | G73: CURRENT | I73: FORTHCOMING
B74: 1987-88 | C74: 1988 | D74: PRCP_y1 | E74: =INDEX(INDIRECT(dms_RPT),dms_PRCP_start_row) -> 2011 | F74: CRCP_y1 | G74: =INDEX(INDIRECT(dms_RPT),dms_CRCP_start_row) -> 2016 | H74: =FRCP_y1 -> 2021 | I74: =INDEX(INDIRECT(dms_RPT),dms_FRCP_start_row) -> 2021
B75: 1988-89 | C75: 1989 | D75: PRCP_y2 | E75: =INDEX(INDIRECT(dms_RPT),dms_PRCP_start_row+1) -> 2012 | F75: CRCP_y2 | G75: =INDEX(INDIRECT(dms_RPT),dms_CRCP_start_row+1) -> 2017 | H75: FRCP_y2 | I75: =INDEX(INDIRECT(dms_RPT),dms_FRCP_start_row+1) -> 2022
B76: 1989-90 | C76: 1990 | D76: PRCP_y3 | E76: =INDEX(INDIRECT(dms_RPT),dms_PRCP_start_row+2) -> 2013 | F76: CRCP_y3 | G76: =INDEX(INDIRECT(dms_RPT),dms_CRCP_start_row+2) -> 2018 | H76: FRCP_y3 | I76: =INDEX(INDIRECT(dms_RPT),dms_FRCP_start_row+2) -> 2023
B77: 1990-91 | C77: 1991 | D77: PRCP_y4 | E77: =INDEX(INDIRECT(dms_RPT),dms_PRCP_start_row+3) -> 2014 | F77: CRCP_y4 | G77: =INDEX(INDIRECT(dms_RPT),dms_CRCP_start_row+3) -> 2019 | H77: FRCP_y4 | I77: =INDEX(INDIRECT(dms_RPT),dms_FRCP_start_row+3) -> 2024
B78: 1991-92 | C78: 1992 | D78: PRCP_y5 | E78: =INDEX(INDIRECT(dms_RPT),dms_PRCP_start_row+4) -> 2015 | F78: CRCP_y5 | G78: =INDEX(INDIRECT(dms_RPT),dms_CRCP_start_row+4) -> 2020 | H78: FRCP_y5 | I78: =INDEX(INDIRECT(dms_RPT),dms_FRCP_start_row+4) -> 2025
B79: 1992-93 | C79: 1993 | D79: PRCP_y6 | E79: =INDEX(INDIRECT(dms_RPT),dms_PRCP_start_row+5) -> 2016 | F79: CRCP_y6 | G79: =INDEX(INDIRECT(dms_RPT),dms_CRCP_start_row+5) -> 2021 | H79: FRCP_y6 | I79: =INDEX(INDIRECT(dms_RPT),dms_FRCP_start_row+5) -> 2026
B80: 1993-94 | C80: 1994 | D80: PRCP_y7 | E80: =INDEX(INDIRECT(dms_RPT),dms_PRCP_start_row+6) -> 2017 | F80: CRCP_y7 | G80: =INDEX(INDIRECT(dms_RPT),dms_CRCP_start_row+6) -> 2022 | H80: FRCP_y7 | I80: =INDEX(INDIRECT(dms_RPT),dms_FRCP_start_row+6) -> 2027
B81: 1994-95 | C81: 1995 | D81: PRCP_y8 | E81: =INDEX(INDIRECT(dms_RPT),dms_PRCP_start_row+7) -> 2018 | F81: CRCP_y8 | G81: =INDEX(INDIRECT(dms_RPT),dms_CRCP_start_row+7) -> 2023 | H81: FRCP_y8 | I81: =INDEX(INDIRECT(dms_RPT),dms_FRCP_start_row+7) -> 2028
B82: 1995-96 | C82: 1996 | D82: PRCP_y9 | E82: =INDEX(INDIRECT(dms_RPT),dms_PRCP_start_row+8) -> 2019 | F82: CRCP_y9 | G82: =INDEX(INDIRECT(dms_RPT),dms_CRCP_start_row+8) -> 2024 | H82: FRCP_y9 | I82: =INDEX(INDIRECT(dms_RPT),dms_FRCP_start_row+8) -> 2029
B83: 1996-97 | C83: 1997 | D83: PRCP_y10 | E83: =INDEX(INDIRECT(dms_RPT),dms_PRCP_start_row+9) -> 2020 | F83: CRCP_y10 | G83: =INDEX(INDIRECT(dms_RPT),dms_CRCP_start_row+9) -> 2025 | H83: FRCP_y10 | I83: =INDEX(INDIRECT(dms_RPT),dms_FRCP_start_row+9) -> 2030
B84: 1997-98 | C84: 1998 | D84: PRCP_y11 | E84: =INDEX(INDIRECT(dms_RPT),dms_PRCP_start_row+10) -> 2021 | F84: CRCP_y11 | G84: =INDEX(INDIRECT(dms_RPT),dms_CRCP_start_row+10) -> 2026 | H84: FRCP_y11 | I84: =INDEX(INDIRECT(dms_RPT),dms_FRCP_start_row+10) -> 2031
B85: 1998-99 | C85: 1999 | D85: PRCP_y12 | E85: =INDEX(INDIRECT(dms_RPT),dms_PRCP_start_row+11) -> 2022 | F85: CRCP_y12 | G85: =INDEX(INDIRECT(dms_RPT),dms_CRCP_start_row+11) -> 2027 | H85: FRCP_y12 | I85: =INDEX(INDIRECT(dms_RPT),dms_FRCP_start_row+11) -> 2032
B86: 1999-00 | C86: 2000 | D86: PRCP_y13 | E86: =INDEX(INDIRECT(dms_RPT),dms_PRCP_start_row+12) -> 2023 | F86: CRCP_y13 | G86: =INDEX(INDIRECT(dms_RPT),dms_CRCP_start_row+12) -> 2028 | H86: FRCP_y13 | I86: =INDEX(INDIRECT(dms_RPT),dms_FRCP_start_row+12) -> 2033
B87: 2000-01 | C87: 2001 | D87: PRCP_y14 | E87: =INDEX(INDIRECT(dms_RPT),dms_PRCP_start_row+13) -> 2024 | F87: CRCP_y14 | G87: =INDEX(INDIRECT(dms_RPT),dms_CRCP_start_row+13) -> 2029 | H87: FRCP_y14 | I87: =INDEX(INDIRECT(dms_RPT),dms_FRCP_start_row+13) -> 2034
B88: 2001-02 | C88: 2002 | D88: PRCP_y15 | E88: =INDEX(INDIRECT(dms_RPT),dms_PRCP_start_row+14) -> 2025 | F88: CRCP_y15 | G88: =INDEX(INDIRECT(dms_RPT),dms_CRCP_start_row+14) -> 2030 | H88: FRCP_y15 | I88: =INDEX(INDIRECT(dms_RPT),dms_FRCP_start_row+14) -> 2035
B89: 2002-03 | C89: 2003 | D89: PRCP_y16 | E89: =INDEX(INDIRECT(dms_RPT),dms_PRCP_start_row+15) -> 2026 | F89: CRCP_y16 | G89: =INDEX(INDIRECT(dms_RPT),dms_CRCP_start_row+15) -> 2031 | H89: FRCP_y16 | I89: =INDEX(INDIRECT(dms_RPT),dms_FRCP_start_row+15) -> 2036
B90: 2003-04 | C90: 2004
B91: 2004-05 | C91: 2005
B92: 2005-06 | C92: 2006 | E92: CRY - FRY
B93: 2006-07 | C93: 2007 | D93: dms_y1 | E93: =IFERROR(INDEX(INDIRECT(dms_RPT),dms_CRY_start_row),0) -> 2006
B94: 2007-08 | C94: 2008 | D94: dms_y2 | E94: =IFERROR(INDEX(INDIRECT(dms_RPT),dms_CRY_start_row+1),0) -> 2007
B95: 2008-09 | C95: 2009 | D95: dms_y3 | E95: =IFERROR(INDEX(INDIRECT(dms_RPT),dms_CRY_start_row+2),0) -> 2008
B96: 2009-10 | C96: 2010 | D96: dms_y4 | E96: =IFERROR(INDEX(INDIRECT(dms_RPT),dms_CRY_start_row+3),0) -> 2009
B97: 2010-11 | C97: 2011 | D97: dms_y5 | E97: =IFERROR(INDEX(INDIRECT(dms_RPT),dms_CRY_start_row+4),0) -> 2010
B98: 2011-12 | C98: 2012 | D98: dms_y6 | E98: =IFERROR(INDEX(INDIRECT(dms_RPT),dms_CRY_start_row+5),0) -> 2011
B99: 2012-13 | C99: 2013 | D99: dms_y7 | E99: =IFERROR(INDEX(INDIRECT(dms_RPT),dms_CRY_start_row+6),0) -> 2012
B100: 2013-14 | C100: 2014 | D100: dms_y8 | E100: =IFERROR(INDEX(INDIRECT(dms_RPT),dms_CRY_start_row+7),0) -> 2013
B101: 2014-15 | C101: 2015 | D101: dms_y9 | E101: =IFERROR(INDEX(INDIRECT(dms_RPT),dms_CRY_start_row+8),0) -> 2014
B102: 2015-16 | C102: 2016 | D102: dms_y10 | E102: =IFERROR(INDEX(INDIRECT(dms_RPT),dms_CRY_start_row+9),0) -> 2015
B103: 2016-17 | C103: 2017 | D103: dms_y11 | E103: =IFERROR(INDEX(INDIRECT(dms_RPT),dms_CRY_start_row+10),0) -> 2016
B104: 2017-18 | C104: 2018 | D104: dms_y12 | E104: =IFERROR(INDEX(INDIRECT(dms_RPT),dms_CRY_start_row+11),0) -> 2017
B105: 2018-19 | C105: 2019 | D105: dms_y13 | E105: =IFERROR(INDEX(INDIRECT(dms_RPT),dms_CRY_start_row+12),0) -> 2018
B106: 2019-20 | C106: 2020 | D106: dms_y14 | E106: =IFERROR(INDEX(INDIRECT(dms_RPT),dms_CRY_start_row+13),0) -> 2019
B107: 2020-21 | C107: 2021 | D107: dms_y15 | E107: =IFERROR(INDEX(INDIRECT(dms_RPT),dms_CRY_start_row+14),0) -> 2020
B108: 2021-22 | C108: 2022 | D108: dms_y16 | E108: =IFERROR(INDEX(INDIRECT(dms_RPT),dms_CRY_start_row+15),0) -> 2021
B109: 2022-23 | C109: 2023
B110: 2023-24 | C110: 2024
B111: 2024-25 | C111: 2025
B112: 2025-26 | C112: 2026
B113: 2026-27 | C113: 2027
B114: 2027-28 | C114: 2028
B115: 2028-29 | C115: 2029
B116: 2029-30 | C116: 2030
B117: 2030-31 | C117: 2031
B118: 2031-32 | C118: 2032
B119: 2032-33 | C119: 2033
B120: 2033-34 | C120: 2034
B121: 2034-35 | C121: 2035
B122: 2035-36 | C122: 2036
B123: 2036-37 | C123: 2037

Sheet AER ETL (hidden)
B1: AER ETL INFORMATION
B3: USES NAMED RANGES FLAG | C3: yes | D3: dms_Defined_Names_Used
B5: IF THIS IS AN ABC RIN - make sure the the named range CRY is applied and the named range dms_dollar_nom_UOM is applied
B6: IF THIS IS A RESET RIN - make sure the named ranges CRY and dms_dollar_nom_UOM are NOT present in the workbook
B7: FOR ABC RINS THAT SPAN MULTIPLE YEARS - make sure MultiYear Flag is set and final year entered as required
B9: Full trading name | C9: =INDEX(dms_TradingNameFull_List,MATCH(dms_TradingName,dms_TradingName_List)) -> Powercor Australia | E9: dms_TradingNameFull
A10: Selected here | B10: Model / RIN | C10: EB | D10: dms_Model
A11: Read from Business & other details | B11: Source | C11: =dms_Selected_Source -> Regulatory proposal | D11: dms_Source
B12: Data quality | C12: =dms_Selected_Quality -> Consolidated | D12: dms_DQ_1
B13: Data status | C13: =dms_Selected_Status -> Public | D13: dms_DQ_2
B14: Amendment reason | C14: =dms_Amendment_Text -> . | F14: dms_AmendmentReason
B15: Submission date | C15: =dms_Typed_Submission_Date -> 2020-01-31 | D15: dms_SubmissionDate
A17: Redundant | B17: EBSS - First application of scheme in forthcoming period? | C17: No
A18: Pre-populated from lookup table | B18: Data ingestion data quality | C18: Consolidated | D18: dms_DataQuality | E18: =IF(dms_DQ_2="Confidential","Consolidated","Public")
B19: Sector | C19: =INDEX(dms_Sector_List,MATCH(dms_TradingName,dms_TradingName_List)) -> Electricity | D19: dms_Sector | E19: =INDEX(dms_Sector_List,MATCH(dms_TradingName,dms_TradingName_List))
B20: Segment | C20: =INDEX(dms_Segment_List,MATCH(dms_TradingName,dms_TradingName_List)) -> Distribution | D20: dms_Segment | E20: =INDEX(dms_Segment_List,MATCH(dms_TradingName,dms_TradingName_List))
B21: Regulatory Year Ending | C21: =dms_RYE_result -> 2018 | D21: dms_RYE | E21: =IF(dms_MultiYear_Flag=1,LEFT(dms_Specified_FinalYear,2)&RIGHT(dms_Specified_FinalYear,2),INDEX(dms_RYE_Formula_Result,MATCH(dms_Model,dms_Model_List)))
B22: Reporting Period Type | C22: =INDEX(dms_RPT_List,MATCH(dms_TradingName,dms_TradingName_List)) -> Calendar | D22: dms_RPT | E22: =INDEX(dms_RPT_List,MATCH(dms_TradingName,dms_TradingName_List))
B23: EB/CA Unit of Measure for Monetary Values | C23: $0s | D23: dms_dollar_nom_UOM | E23: If the cover sheet is attached to an ABC RIN apply the NAMED RANGE to the cell
B24: Security Classification | C24: Public | D24: dms_Classification | E24: Always Public
B25: Jurisdiction | C25: =INDEX(dms_JurisdictionList,MATCH(dms_TradingName,dms_TradingName_List)) -> Vic | D25: dms_Jurisdiction | E25: =INDEX(dms_JurisdictionList,MATCH(dms_TradingName,dms_TradingName_List))
A26: Relevant for PTRM, RFMs and Reset RINS | B26: $ REAL REFERENCES
B27: Does the named range CRY exist in this file? | C27: =IFERROR(CRY,"NO") -> 2006
B28: CRY-1 (last full calendar year before CRY) | C28: =IFERROR(IF(dms_RPT="calendar",CRY-1,LEFT(CRY,4)),"CRY not present") -> 2005 | D28: dms_Cal_Year_B4_CRY | E28: '=IF(dms_RPT="financial",VALUE(LEFT(dms_SingleYear_FinalYear_Result,4)),VALUE(LEFT(dms_SingleYear_FinalYear_Result,4)-1))
B29: Dollar $ real month | C29: =INDEX(dms_RPTMonth_List,MATCH(dms_TradingName,dms_TradingName_List)) -> December | D29: dms_RPTMonth | E29: =INDEX(dms_RPTMonth_List,MATCH(dms_TradingName,dms_TradingName_List))
B30: Dollar $ real (the last month before the FRCP_y1) | C30: =IF(dms_SingleYearModel="yes",CONCATENATE(dms_RPTMonth)&" "&VALUE((LEFT(CRY,2))&RIGHT(CRY,2)),CONCATENATE(dms_RPTMonth)&" "&dms_DollarReal_year) -> December 2006 | D30: dms_DollarReal | E30: =IF(SUM(dms_SingleYear_Model)>0,CONCATENATE(dms_RPTMonth)&" "&VALUE((LEFT(CRY,2))&RIGHT(CRY,2)),CONCATENATE(dms_RPTMonth)&" "&VALUE((LEFT(dms_RYE,2)&RIGHT(dms_RYE,2))))
B31: Dollar $ real previous year (PRCP_y5) | C31: =IF(dms_SingleYearModel="yes",CONCATENATE(dms_RPTMonth)&" "&VALUE((LEFT(CRY,2))&RIGHT(CRY,2)),CONCATENATE(dms_RPTMonth)&" "&dms_Previous_DollarReal_year) -> December 2006 | D31: dms_DollarReal_Prev | E31: =IF(SUM(dms_SingleYear_Model)>0,CONCATENATE(dms_RPTMonth)&" "&VALUE(((LEFT(CRY,2))&RIGHT(CRY,2))-1),CONCATENATE(dms_RPTMonth)&" "&VALUE(((LEFT(dms_CRCP_FirstYear_Result,2)&RIGHT(dms_CRCP_FirstYear_Result,2))))-1)
B32: PTRM/ RFMs
B33: Form of control | C33: =INDEX(dms_FormControl_List,MATCH(dms_TradingName,dms_TradingName_List)) -> Revenue cap | D33: dms_FormControl | E33: =INDEX(dms_FormControl_List,MATCH(dms_TradingName,dms_TradingName_List))
A34: All potential values for Regulatory Years or RYEs as calculated | B34: This block works out the various RYE's for ALL RIN types and MODELS
B35: dms_start_year | C35: =FRCP_y1 -> 2021 | D35: FRCP_y1 from cover sheet
B36: dms_CRY_start_year | C36: =IFERROR(CRY,0) -> 2006 | D36: If this has a year in it then named range CRY exists
B37: dms_CRY_start_row | C37: =MATCH(CRY,INDIRECT(dms_RPT),0) -> 19
B38: dms_FRCP_start_row | C38: =MATCH(dms_start_year,INDIRECT(dms_RPT),0) -> 34 | D38: Uses FRCP_y1 as a start reference
B39: dms_CRCP_start_row | C39: =dms_FRCP_start_row-dms_CRCPlength_Num -> 29 | D39: Uses the value in dms_CRCPlength_Num
B40: dms_PRCP_start_row | C40: =dms_FRCP_start_row-SUM(dms_CRCPlength_Num+dms_PRCPlength_Num) -> 24 | D40: Uses the value in dms_CRCPlength_Num and dms_PRCPlength_Num
B41: dms_RYE_start_row | C41: =dms_FRCP_start_row+(dms_FRCPlength_Num-1) -> 38 | D41: Uses the value in dms_FRCPlength_Num-1
B42: FRCP_start_year | C42: =INDEX(INDIRECT(dms_RPT),dms_FRCP_start_row) -> 2021 | D42: Converts the FRCP start row to display the year
B43: CRCP_start_year | C43: =INDEX(INDIRECT(dms_RPT),dms_CRCP_start_row) -> 2016 | D43: Converts the CRCP start row to display the year
B44: PRCP_start_year | C44: =INDEX(INDIRECT(dms_RPT),dms_PRCP_start_row) -> 2011 | D44: Converts the PRCP start row to display the year
B45: FRCP_final_year | C45: =INDEX(INDIRECT(dms_RPT),dms_FRCP_start_row+dms_FRCPlength_Num-1) -> 2025 | D45: Finds the FRCP final year
B46: CRCP_final_year | C46: =INDEX(INDIRECT(dms_RPT),dms_CRCP_start_row+dms_CRCPlength_Num-1) -> 2020 | D46: Finds the CRCP final year
B47: PRCP_final_year | C47: =INDEX(INDIRECT(dms_RPT),dms_PRCP_start_row+dms_FRCPlength_Num-1) -> 2015 | D47: Finds the PRCP final year
B48: dms_Reset_final_year | C48: =INDEX(INDIRECT(dms_RPT),dms_RYE_start_row) -> 2025 | D48: For Resets and PTRM/RFMs (same as FRCP_final_year)
B49: dms_SpecifiedYear_final_year | C49: =FRY -> 2018 | D49: FRY from cover sheet
B50: dms_DollarReal_year | C50: =LEFT(CRCP_final_year,2)&RIGHT(CRCP_final_year,2) -> 2020 | D50: Uses the value in CRCP_final_year
B51: dms_Previous_DollarReal_year | C51: =LEFT(PRCP_final_year,2)&RIGHT(PRCP_final_year,2) -> 2015 | D51: Uses the value in PRCP_final_year
B52: dms_CRY_RYE | C52: =IFERROR(LEFT(CRY,2)&RIGHT(CRY,2),0) -> 2006 | D52: For ABC single year RINS
B53: dms_Reset_RYE | C53: =IF(dms_Model_Span>1,(LEFT(dms_Reset_final_year,2)&RIGHT(dms_Reset_final_year,2)),0) -> 0 | D53: If model span > 1 then uses dms_Reset_final_year otherwise it's a multi year ABC
B54: dms_Specified_RYE | C54: =IF(dms_MultiYear_ResponseFlag="Yes",(LEFT(dms_Specified_FinalYear,2)&RIGHT(dms_Specified_FinalYear,2)),0) -> 2018 | D54: If multi year ABC then it uses dms_Specified_FinalYear
B55: dms_Model_Span | C55: =INDEX(dms_Model_Span_List,MATCH(dms_Model,dms_Model_List)) -> 1 | D55: Only single year RINS are set as 1. Otherwise the result of 5 is used to signify that it is more than 1 year span
B56: dms_RYE_result | C56: =IF(dms_MultiYear_ResponseFlag="yes",dms_Specified_RYE,(IF(dms_Model_Span>1,dms_Reset_RYE,dms_CRY_RYE))) -> 2018 | D56: Nested IF - feeds into dms_RYE
B57: dms_Reset_Span | C57: =IF(dms_Reset_RYE>0,CONCATENATE(FRCP_y1," to ",FRCP_final_year),0) -> 0 | D57: Reset span of years as text
B58: dms_SpecifiedYear_Span | C58: =IF(dms_Specified_RYE>0,CONCATENATE(CRY," to ",dms_Specified_FinalYear),0) -> 2006 to 2018 | D58: Multi year ABC span of years as text
B59: dms_Header_Span | C59: =IF(dms_MultiYear_Flag=1,dms_SpecifiedYear_Span,IF(dms_Model_Span>1,dms_Reset_Span,CRY)) -> 2006 to 2018 | D59: NESTED IF - for Sheet Headers
B60: ABC RINS THAT SPAN MULTIPLE YEARS
B61: This is a multi year ABC RIN? | C61: Yes
C62: =IF(dms_MultiYear_ResponseFlag="No",0,1) -> 1 | D62: dms_MultiYear_Flag | E62: This is set from the answer provided above
C63: =IF(dms_MultiYear_Flag=1,FRY,"not a Multiple year submission") -> 2018 | D63: dms_Specified_FinalYear | E63: The result here is returned to dms_CRCP_FinalYear_Result if response to Q in C73 is "yes" and dms_MultiYear_Flag is set to 1
B64: Start year for 5.2 in Multi year ABC RINS | C64: =IFERROR(IF(dms_MultiYear_Flag=1,FRY,CRY),"not an ABC") -> 2018 | D64: dms_0502_Inst_Year | E64: =IF(dms_MultiYear_Flag=1,FRY,CRY) | G64: For single year RINS this is CRY - multi year RINS need to start a the end of the span of years (ie. FRY)
B65: WHAT IS THE RYE?
B66: Reg Period Lengths
B67: PRCP length in years | C67: =INDEX(dms_PRCPlength_List,MATCH(dms_TradingName,dms_TradingName_List)) -> 5 | D67: dms_PRCPlength_Num | E67: =INDEX(dms_PRCPlength_List,MATCH(dms_TradingName,dms_TradingName_List))
B68: CRCP length in years | C68: =INDEX(dms_CRCPlength_List,MATCH(dms_TradingName,dms_TradingName_List)) -> 5 | D68: dms_CRCPlength_Num | E68: =INDEX(dms_CRCPlength_List,MATCH(dms_TradingName,dms_TradingName_List))
B69: FRCP length in years | C69: =INDEX(dms_FRCPlength_List,MATCH(dms_TradingName,dms_TradingName_List)) -> 5 | D69: dms_FRCPlength_Num | E69: =INDEX(dms_FRCPlength_List,MATCH(dms_TradingName,dms_TradingName_List))
B70: Single year RIN?
B71: Single Year ABC RIN ? | C71: =IF(dms_Model="EB",1,0) -> 1 | D71: dms_EB
C72: =IF(dms_Model="CA",1,0) -> 0 | D72: dms_CA | E72: =dms_SingleYear_Model
C73: =IF(dms_Model="ARR",1,0) -> 0 | D73: dms_ARR
B74: Is this a single Year ABC RIN? | C74: =IF(SUM(dms_SingleYear_Model)=1,"yes","no") -> yes | D74: dms_SingleYearModel | E74: =IF(SUM(dms_SingleYear_Model)=1,"yes","no")
B75: Single Year Final Year Result | C75: =IF(AND(dms_SingleYearModel="yes",dms_MultiYear_Flag=0),CRY,0) -> 0 | D75: dms_SingleYear_FinalYear_Result | E75: =IFERROR(IF(SUM(dms_SingleYear_Model)<>0,(INDIRECT(dms_SingleYear_FinalYear_Ref)),"not a single year RIN"),"CRY not present")
B76: Multi year RIN?
B78: Multi Year Reset/Model? | C78: =IF(dms_Model_Span>1,"yes","no") -> no
B79: Final year result for Reset/Model | C79: =IF(dms_Model_Span>1,dms_Reset_final_year,0) -> 0
B81: Multi Year ABC RIN? | C81: =IF(dms_MultiYear_Flag=1,"yes","no") -> yes
B82: Final year result for ABC multi year | C82: =IF(dms_MultiYear_Flag=1,dms_SpecifiedYear_final_year,0) -> 2018
B84: EB RINS
B85: Calendar Year for table 3.6 data | C85: =IFERROR(IF(dms_Segment="Transmission",dms_Cal_Year_B4_CRY,CRY),"CRY not present") -> 2006 | D85: dms_0306_Year | E85: =IF(dms_Segment="Transmission",dms_Cal_Year_B4_CRY,CRY)
B86: CA RINS
B87: Find how many rows in tables 6.3 sustained interruptions? | E87: dms_060301_MaxRows only returns a valid value when cover sheet is attached to a CA file
C88: =IF(dms_Model<>"CA","not a CA","Is a CA") -> not a CA | E88: =IF(dms_Model<>"CA","not a CA","Is a CA")
B89: dms_060301_Avg_Duration_Sustained_Int_Values present? | C89: =IFERROR(IF(INDEX(dms_060301_Avg_Duration_Sustained_Int_Values,1,1)<>"","yes","no"),"no") -> no | D89: dms_060301_checkvalue | E89: =IFERROR(IF(INDEX(dms_060301_Avg_Duration_Sustained_Int_Values,1,1)<>"","yes","no"),"no")
C90: =IF(AND(dms_Model="CA",(dms_060301_checkvalue="no")),"error - NR not present","no errors") -> no errors | E90: =IF(AND(dms_Model="CA",(dms_060301_checkvalue="no")),"error - NR not present","no errors")
B91: Table 6.3.1 - last row reference | C91: =IFERROR(IF(dms_Model="CA",LOOKUP(2,1/(dms_060301_Avg_Duration_Sustained_Int_Values<>""),(ROW(dms_060301_Avg_Duration_Sustained_Int_Values))),"not a CA"),"6.3 not present") -> not a CA | D91: dms_060301_LastRow | E91: =IFERROR(IF(dms_Model="CA",LOOKUP(2,1/(dms_060301_Avg_Duration_Sustained_Int_Values<>""),(ROW(dms_060301_Avg_Duration_Sustained_Int_Values))),"not a CA"),"6.3 not present")
B92: Table 6.3.1 - max number rows | C92: =IFERROR(IF(dms_Model="CA",(dms_060301_LastRow-15),"not a CA"),"error") -> not a CA | D92: dms_060301_MaxRows | E92: =IFERROR(IF(dms_Model="CA",(dms_060301_LastRow-15),"not a CA"),"error")
B93: Table 6.6.3 - Public lighting repair - no. business days | C93: =INDEX(dms_663_List,MATCH(dms_TradingName,dms_TradingName_List)) -> 2 | D93: dms_663 | E93: =INDEX(dms_663_List,MATCH(dms_TradingName,dms_TradingName_List))
B94: ARR or RESET RINS
B95: How many rows in tables 6.1 or 6.7? (leap year?) | C95: insert dms_LeapYear NR if required | E95: 'dms_LeapYear is used to determine dms_060701_Max_Rows BUT it is only found on worksheet 6.1 or 6.7 and the date value in the cell is used to determine whether it is a leap year
B96: Is dms_LeapYear named range present? | C96: =IFERROR(IF(dms_LeapYear,"yes"),"no") -> no
B97: Table 6.7.1 - includes a leap year? | C97: =IFERROR(IF(MONTH(DATE(YEAR(dms_LeapYear),2,29))=2,"is a leap year","not a leap year"), "dms_LeapYear not present") -> dms_LeapYear not present | D97: dms_LeapYear_Result | E97: =IFERROR(IF(MONTH(DATE(YEAR(dms_LeapYear),2,29))=2,"is a leap year","not a leap year"),"dms_LeapYear not present")
B98: MaxRows if Reset and leap year | C98: =IF(dms_LeapYear_Result="is a leap year",1827,1826) -> 1826 | D98: dms_060701_Reset_MaxRows | E98: =IF(dms_LeapYear_Result="is a leap year",1827,1826) | H98: number of days present in Reset RIN table
B99: MaxRows if ARR and leap year | C99: =IF(dms_LeapYear_Result="is a leap year",366,365) -> 365 | D99: dms_060701_ARR_MaxRows | E99: =IF(dms_LeapYear_Result="is a leap year",366,365) | H99: number of days present in ARR RIN table
B100: Table 6.7.1 - Max Rows (leap year/ non leap year) | C100: =IF(dms_Model="ARR",dms_060701_ARR_MaxRows,IF(dms_Model="Reset",dms_060701_Reset_MaxRows,"not a relevant RIN type")) -> not a relevant RIN type | D100: dms_060701_MaxRows | E100: =IF(dms_Model="ARR",dms_060701_ARR_MaxRows,IF(dms_Model="Reset",dms_060701_Reset_MaxRows,"not a relevant RIN type"))
B101: How many columns in 6.7? (4 or 5 feeder categories) | C101: =IF(dms_FifthFeeder_flag_NSP="NO","This NSP has only 4 feeder categories","This NSP has 5 feeder categories") -> This NSP has only 4 feeder categories
B102: Table 6.7.1 - Last column (# of feeder categories > 4) | C102: =IF(dms_FifthFeeder_flag_NSP="NO",10,12) -> 10 | D102: dms_060701_MaxCols | E102: =IF(dms_FifthFeeder_flag_NSP="NO",8,10)
B103: Table 6.7.1 - Number of offset rows | C103: =IF(dms_Model="ARR",15,9) -> 9 | D103: dms_060701_OffsetRows | E103: =IF(dms_Model="ARR",15,9)
B104: Start date for telephone answering in 6.1 or 6.7? | E104: Using 060101 as naming standard not 060701 for start dates
B105: Table 6.1.1 and 6.7.1 - Start Date as Text | C105: =IF(dms_SingleYearModel="yes",(CONCATENATE(IF(LEN(CRY)=4,"1-Jan-","1-Jul-"),LEFT(CRY,4))),(CONCATENATE(IF(LEN(PRCP_y4)=4,"1-Jan-","1-Jul-"),LEFT(PRCP_y4,4)))) -> 1-Jan-2006 | D105: dms_060101_StartDateTxt | E105: =IF(SUM(dms_SingleYear_Model)>1,(CONCATENATE(IF(LEN(CRY)=4,"1-Jan-","1-Jul-"),LEFT(CRY,4))),(CONCATENATE(IF(LEN(CRCP_y4)=4,"1-Jan-","1-Jul-"),LEFT(CRCP_y4,4))))
B106: Table 6.1.1 and 6.7.1 - Start Date as Date Value | C106: =DATEVALUE(dms_060701_StartDateTxt) -> 38718 | D106: dms_060101_StartDateVal | E106: =DATEVALUE(dms_060701_StartDateTxt)
B107: ARRs
B108: How many rows in table 6.8? | C108: insert dms_060801_StartCell NR if required | E108: dms_060801_StartCell is only found on worksheet 6.8 and is used to determine the starting date for the date range
B109: Is dms_060801_StartCell named range present? | C109: yes | E109: =IFERROR(IF((ROW(dms_060801_StartCell)-1)=1,"yes","yes"),"no")
B110: Table 6.8 - Number of offset rows | C110: 12 | D110: dms_0608_OffsetRows | E110: =IFERROR(IF(dms_Model="ARR",(ROW(dms_060801_StartCell)-1),"not an ARR"),"6.8 error")
B111: Table 6.8 - Last row | C111: 0 | D111: dms_0608_LastRow | E111: =IFERROR(IF(dms_060801_StartCell<>"",IF(dms_Model="ARR",(LOOKUP(2,1/(dms_060801_01_Values<>""),(ROW(dms_060801_01_Values)))),"not an ARR"),0),"0")
B112: Table 6.8 - MaxRows | C112: =IFERROR(IF(dms_Model="ARR",(MAX(0,dms_0608_LastRow-dms_0608_OffsetRows)),"not an ARR"),"0") -> not an ARR | D112: dms_060801_MaxRows | E112: =IFERROR(IF(dms_Model="ARR",(MAX(0,dms_0608_LastRow-dms_0608_OffsetRows)),"not an ARR"),"0")
B113: TNSP RESET RINS
B114: Table 7.9.4 only appears in TNSPs Reset RIN
B115: Table 7.9.4 - first year | C115: =LEFT(PRCP_y3,4) -> 2013 | D115: dms_070904_Start_Year | E115: =LEFT(PRCP_y3,4)
B117: MISC
B118: Distribution Determination Reference | C118: =INDEX(dms_DeterminationRef_List,MATCH(dms_TradingName,dms_TradingName_List)) -> 2016-20 Distribution Determination | D118: dms_DeterminationRef
B119: Public lighting NSP? | C119: =INDEX(dms_Public_Lighting_List,MATCH(dms_TradingName,dms_TradingName_List)) -> YES | D119: dms_Public_Lighting | E119: =INDEX(dms_Public_Lighting_List,MATCH(dms_TradingName,dms_TradingName_List))
B120: CBD Feeder for this business | C120: =INDEX(dms_CBD_flag,MATCH(dms_TradingName,dms_TradingName_List)) -> NO | D120: dms_CBD_flag_NSP
B121: Urban Feeder for this business | C121: =INDEX(dms_Urban_flag,MATCH(dms_TradingName,dms_TradingName_List)) -> NO | D121: dms_Urban_flag_NSP
B122: Short rural Feeder for this business | C122: =INDEX(dms_ShortRural_flag,MATCH(dms_TradingName,dms_TradingName_List)) -> YES | D122: dms_ShortRural_flag_NSP
B123: Long rural Feeder for this business | C123: =INDEX(dms_LongRural_flag,MATCH(dms_TradingName,dms_TradingName_List)) -> YES | D123: dms_LongRural_flag_NSP
B124: Fifth Feeder Category (eg. TasNetworks (D)) | C124: =INDEX(dms_FeederType_5_flag,MATCH(dms_TradingName,dms_TradingName_List)) -> NO | D124: dms_FifthFeeder_flag_NSP | E124: =INDEX(dms_FeederType_5_flag,MATCH(dms_TradingName,dms_TradingName_List))
B126: DISCARD FILES
B127: discard this record? | C127: NO | D127: dms_DISCARD | E127: If record is to be discarded from DB set this flag to YES
B129: SUBSET FILES
B130: Is this Submission File a Subset File | C130: YES | D130: dms_Partial
B133: REGULATORY YEARS FOR MULTI RYE SUBMISSIONS
B134: Multiple RYE flag | C134: YES | D134: dms_Multi_RYE_flag
C135: Manually specify RYE | D135: Named ranges to apply
C136: 2013 | D136: dms_RYE_01
C137: 2014 | D137: dms_RYE_02
C138: 2015 | D138: dms_RYE_03
C139: 2016 | D139: dms_RYE_04
C140: 2017 | D140: dms_RYE_05
C141: 2018 | D141: dms_RYE_06
C142: 2019 | D142: dms_RYE_07
C143: 2020 | D143: dms_RYE_08
C144: 2021 | D144: dms_RYE_09

Sheet Instructions
B2: =CONCATENATE(dms_Sector," ",dms_Segment," ", "Network Service Provider") -> Electricity Distribution Network Service Provider
B3: =INDEX(dms_Worksheet_List,MATCH(dms_Model,dms_Model_List)) -> RECAST HISTORICAL ECONOMIC BENCHMARKING - CALENDAR YEARS
B4: =CONCATENATE("This template is to be used by ",dms_TradingNameFull," to fulfil its reporting obligations to the AER.") -> This template is to be used by Powercor Australia to fulfil its reporting obligations to the AER.
B5: INSTRUCTIONS
B6: GENERAL | C6: Complete the Business & other details worksheet before entering data or values in any other worksheets. The Business & other details worksheet is linked to other worksheets within the workbook and automatically generates certain column headings and conditional formatting.
B8: CONFIDENTIAL INFORMATION | C8: Please use the macro at the top of each worksheet to identify confidential information in the confidential workbook.
C9: -Do this by selecting the cell or cells that contain confidential information and then run the Mark selection as CONFIDENTIAL macro. This will format the cells a specific colour that is identified by the AER's database which in turn marks that information as confidential. -To reverse this, select the cell or cells and run the Return selection to NON-CONFIDENTIAL macro.
B11: RESPONSES | C11: Please return two (2) files to the AER: 1. A confidential version which must contain a complete set of all responses with confidential information marked using the Mark selection CONFIDENTIAL macro and which has been completed using the locked template file provided by the AER. 2. A public version with confidential information either removed completely or aggregated in some form together with writtten consent to disclose the public version of the response. Use the drop down box on the Business and other details worksheet to identify the file as either confidential ('consolidated') or public.
B13: AMENDMENTS | C13: If an NSP wishes to correct data previously submitted to the AER it should resubmit that data using the original completed submission as the starting point. Please make any necessary changes to the data. Data that is not being amended should be left unchanged. NSPs must identify the reason for the amendments in the Amendment Reason box on the Business and other details worksheet. NSPs may provide further details regarding any amendments in the Amendments worksheet. .
C14: NSP may use Amended Data macro to highlight cells that contain amended data. NB: if data is also CONFIDENTIAL, re-apply the Confidentiality macro after applying the Amended macro
C15: Please resubmit two (2) files - a confidential version and a public version of the amended submission to the AER
B17: UNITS OF MEASURE | C17: All amounts are to be unrounded and reported on a one for one basis: that is 1000 is to be entered as '1000'. Applicable units of measure may be identified in the table column headings or row descriptors.
B19: INPUT / NON-INPUT CELLS
D20: Yellow = Input cell (mandatory)
D21: Darker yellow = input cell (mandatory)
D22: Orange = input cell (if data available)
D23: Grey = Not applicable/No inputs required
D24: PLEASE DO NOT ENTER TEXT into cells that are to contain numeric data.
B27: NAVIGATION | C27: Many tables in the worksheets have been "grouped" to allow for easy navigation. To ungroup or group data use the outline symbols in the left margin (for Row groupings) or above the columns (for column groupings).

Sheet Contents
B1: =INDEX(dms_Worksheet_List,MATCH(dms_Model,dms_Model_List)) -> RECAST HISTORICAL ECONOMIC BENCHMARKING - CALENDAR YEARS
B2: =INDEX(dms_TradingNameFull_List,MATCH(dms_TradingName,dms_TradingName_List)) -> Powercor Australia
B3: =dms_Header_Span -> 2006 to 2018
C6: CONTENTS
C8: SUBMISSION | D8: Business & other details
C10: ECONOMIC BENCHMARKING | D10: 3.1 Revenue
D11: 3.2 Operating expenditure
D12: 3.2.3 Provisions
D13: 3.3 Assets (RAB)

Sheet Business & other details
V1: =INDEX(dms_Worksheet_List,MATCH(dms_Model,dms_Model_List)) -> RECAST HISTORICAL ECONOMIC BENCHMARKING - CALENDAR YEARS
V2: =INDEX(dms_TradingNameFull_List,MATCH(dms_TradingName,dms_TradingName_List)) -> Powercor Australia
V3: =dms_Header_Span -> 2006 to 2018
V4: BUSINESS & OTHER DETAILS
V6: INSTRUCTIONS
V7: Complete the following business details regulatory template before entering data or values in any other regulatory template. This regulatory template is linked to other cells within the spreadsheet and automatically generates column headings and conditional formatting to distinguish business specific input and non-input cells.
Q9: SUBMISSION PARTICULARS INPUT SHEET
V12: ENTITY DETAILS
V14: Business Name
V16: Short name | AL16: Powercor Australia
V17: ACN/ABN | AL17: =INDEX(dms_ABN_List,MATCH(dms_TradingName,dms_TradingName_List)) -> 89064651109
V21: Business Address | BQ21: Postal Address
V23: Address 1 | AL23: =INDEX(dms_Addr1_List,MATCH(dms_TradingName,dms_TradingName_List)) -> 40 Market Street | BI23: Address 1 | BQ23: =INDEX(dms_PAddr1_List,MATCH(dms_TradingName,dms_TradingName_List)) -> Locked bag 14090
V24: Address 2 | AL24: =IF(ISBLANK(INDEX(dms_Addr2_List,MATCH(dms_TradingName,dms_TradingName_List))),"",(INDEX(dms_Addr2_List,MATCH(dms_TradingName,dms_TradingName_List)))) ->  | BI24: Address 2 | BQ24: =IF(ISBLANK(INDEX(dms_PAddr2_List,MATCH(dms_TradingName,dms_TradingName_List))),"",(INDEX(dms_PAddr2_List,MATCH(dms_TradingName,dms_TradingName_List)))) -> 
V25: Suburb | AL25: =INDEX(dms_Suburb_List,MATCH(dms_TradingName,dms_TradingName_List)) -> MELBOURNE | BI25: Suburb | BQ25: =INDEX(dms_PSuburb_List,MATCH(dms_TradingName,dms_TradingName_List)) -> MELBOURNE
V26: State | AL26: =INDEX(dms_State_List,MATCH(dms_TradingName,dms_TradingName_List)) -> Vic | AV26: Post code | BI26: State | BQ26: =INDEX(dms_PState_List,MATCH(dms_TradingName,dms_TradingName_List)) -> Vic | CA26: Post code
BA28: `
V30: Contact Names
V32: Name | AL32: Brent Cleeve | BI32: Name
V33: Phone | AL33: (03) 9683 4465 | BI33: Phone
V34: Email | AL34: bcleeve@powercor.com.au | BI34: Email
V39: REGULATORY CONTROL PERIODS
V42: RESETS | AF42: Forthcoming period | AR42: 2021 | BA42: =FRCP_y2 -> 2022 | BJ42: =FRCP_y3 -> 2023 | BS42: =FRCP_y4 -> 2024 | CB42: =FRCP_y5 -> 2025
AR43: =FRCP_y6 -> 2026 | BA43: =FRCP_y7 -> 2027 | BJ43: =FRCP_y8 -> 2028 | BS43: =FRCP_y9 -> 2029 | CB43: =FRCP_y10 -> 2030
AR44: =FRCP_y11 -> 2031 | BA44: =FRCP_y12 -> 2032 | BJ44: =FRCP_y13 -> 2033 | BS44: =FRCP_y14 -> 2034 | CB44: =FRCP_y15 -> 2035
AF46: Current period | AR46: =CRCP_y1 -> 2016 | BA46: =CRCP_y2 -> 2017 | BJ46: =CRCP_y3 -> 2018 | BS46: =CRCP_y4 -> 2019 | CB46: =CRCP_y5 -> 2020
AR47: =CRCP_y6 -> 2021 | BA47: =CRCP_y7 -> 2022 | BJ47: =CRCP_y8 -> 2023 | BS47: =CRCP_y9 -> 2024 | CB47: =CRCP_y10 -> 2025
AR48: =CRCP_y11 -> 2026 | BA48: =CRCP_y12 -> 2027 | BJ48: =CRCP_y13 -> 2028 | BS48: =CRCP_y14 -> 2029 | CB48: =CRCP_y15 -> 2030
AF50: Previous period | AR50: =PRCP_y1 -> 2011 | BA50: =PRCP_y2 -> 2012 | BJ50: =PRCP_y3 -> 2013 | BS50: =PRCP_y4 -> 2014 | CB50: =PRCP_y5 -> 2015
AR51: =PRCP_y6 -> 2016 | BA51: =PRCP_y7 -> 2017 | BJ51: =PRCP_y8 -> 2018 | BS51: =PRCP_y9 -> 2019 | CB51: =PRCP_y10 -> 2020
AR52: =PRCP_y11 -> 2021 | BA52: =PRCP_y12 -> 2022 | BJ52: =PRCP_y13 -> 2023 | BS52: =PRCP_y14 -> 2024 | CB52: =PRCP_y15 -> 2025
V54: ANNUAL RINS | AF54: Commencing year | AR54: 2006
AF56: Final year | AR56: 2018
V60: SUBMISSION DETAILS
AF62: RIN type | AR62: =INDIRECT(dms_Model) -> Economic Benchmarking
V64: THIS FILE | AF64: Source | AR64: Regulatory proposal
AF66: Data Quality | AR66: Consolidated
AF68: Confidentiality Status | AR68: Public
AF70: Amended RIN Amendment Reason | AR70: .
AF74: Submission Date | AR74: 2020-01-31

Sheet 3.1 Revenue
B1: =INDEX(dms_Worksheet_List,MATCH(dms_Model,dms_Model_List)) -> RECAST HISTORICAL ECONOMIC BENCHMARKING - CALENDAR YEARS
B2: =INDEX(dms_TradingNameFull_List,MATCH(dms_TradingName,dms_TradingName_List)) -> Powercor Australia
B3: =dms_Header_Span -> 2006 to 2018
B4: 3.1 REVENUE
B6: There are THREE (x TWO) tables on this worksheet. Both ROWS and COLUMNS have been grouped for ease of navigation. see the Instructions sheet on how to group or ungroup tables.
B8: 3.1.1 - REVENUE GROUPING BY CHARGEABLE QUANTITY
C9: STANDARD CONTROL SERVICES | Q9: ALTERNATIVE CONTROL SERVICES
C10: REVENUE ($0's) | Q10: REVENUE ($0's)
C11: =dms_y1 -> 2006 | D11: =dms_y2 -> 2007 | E11: =dms_y3 -> 2008 | F11: =dms_y4 -> 2009 | G11: =dms_y5 -> 2010 | H11: =dms_y6 -> 2011 | I11: =dms_y7 -> 2012 | J11: =dms_y8 -> 2013 | K11: =dms_y9 -> 2014 | L11: =dms_y10 -> 2015 | M11: =dms_y11 -> 2016 | N11: =dms_y12 -> 2017 | O11: =dms_y13 -> 2018 | Q11: =dms_y1 -> 2006 | R11: =dms_y2 -> 2007 | S11: =dms_y3 -> 2008 | T11: =dms_y4 -> 2009 | U11: =dms_y5 -> 2010 | V11: =dms_y6 -> 2011 | W11: =dms_y7 -> 2012 | X11: =dms_y8 -> 2013 | Y11: =dms_y9 -> 2014 | Z11: =dms_y10 -> 2015 | AA11: =dms_y11 -> 2016 | AB11: =dms_y12 -> 2017 | AC11: =dms_y13 -> 2018
A12: DREV0101 | B12: Revenue from Fixed Customer Charges
A13: DREV0102 | B13: Revenue from Energy Delivery charges where time of use is not a determinant
A14: DREV0103 | B14: Revenue from On–Peak Energy Delivery charges
A15: DREV0104 | B15: Revenue from Shoulder period Energy Delivery Charges
A16: DREV0105 | B16: Revenue from Off–Peak Energy Delivery charges
A17: DREV0106 | B17: Revenue from controlled load customer charges
A18: DREV0107 | B18: Revenue from unmetered supplies
A19: DREV0108 | B19: Revenue from Contracted Maximum Demand charges
A20: DREV0109 | B20: Revenue from Measured Maximum Demand charges
A21: DREV0110 | B21: Revenue from metering charges
A22: DREV0111 | B22: Revenue from connection charges
A23: DREV0112 | B23: Revenue from public lighting charges
A24: DREV0113 | B24: Revenue from other Sources
A25: DREV01 | B25: Total revenue by chargeable quantity | C25: =SUM(C12:C24) -> 0 | D25: =SUM(D12:D24) -> 0 | E25: 0 | F25: 0 | G25: 0 | H25: 0 | I25: 0 | J25: 0 | K25: =SUM(K12:K24) -> 0 | L25: 0 | M25: =SUM(M12:M24) -> 0 | N25: 0 | O25: 0 | Q25: =SUM(Q12:Q24) -> 0 | R25: =SUM(R12:R24) -> 0 | S25: =SUM(S12:S24) -> 0 | T25: =SUM(T12:T24) -> 0 | U25: =SUM(U12:U24) -> 0 | V25: =SUM(V12:V24) -> 0 | W25: =SUM(W12:W24) -> 0 | X25: =SUM(X12:X24) -> 0 | Y25: 0 | Z25: 0 | AA25: 0 | AB25: 0 | AC25: 0
B27: 3.1.2 - REVENUE GROUPING BY CUSTOMER TYPE OR CLASS
C28: STANDARD CONTROL SERVICES | Q28: ALTERNATIVE CONTROL SERVICES
C29: REVENUE ($0's) | Q29: REVENUE ($0's)
C30: =dms_y1 -> 2006 | D30: =dms_y2 -> 2007 | E30: =dms_y3 -> 2008 | F30: =dms_y4 -> 2009 | G30: =dms_y5 -> 2010 | H30: =dms_y6 -> 2011 | I30: =dms_y7 -> 2012 | J30: =dms_y8 -> 2013 | K30: =dms_y9 -> 2014 | L30: =dms_y10 -> 2015 | M30: =dms_y11 -> 2016 | N30: =dms_y12 -> 2017 | O30: =dms_y13 -> 2018 | Q30: =dms_y1 -> 2006 | R30: =dms_y2 -> 2007 | S30: =dms_y3 -> 2008 | T30: =dms_y4 -> 2009 | U30: =dms_y5 -> 2010 | V30: =dms_y6 -> 2011 | W30: =dms_y7 -> 2012 | X30: =dms_y8 -> 2013 | Y30: =dms_y9 -> 2014 | Z30: =dms_y10 -> 2015 | AA30: =dms_y11 -> 2016 | AB30: =dms_y12 -> 2017 | AC30: =dms_y13 -> 2018
A31: DREV0201 | B31: Revenue from residential Customers
A32: DREV0202 | B32: Revenue from Non residential customers not on demand tariffs
A33: DREV0203 | B33: Revenue from Non-residential low voltage demand tariff customers
A34: DREV0204 | B34: Revenue from Non-residential high voltage demand tariff customers
A35: DREV0205 | B35: Revenue from unmetered supplies
A36: DREV0206 | B36: Revenue from Other Customers
A37: DREV02 | B37: Total revenue by customer class | C37: =SUM(C31:C36) -> 0 | D37: =SUM(D31:D36) -> 0 | E37: 0 | F37: 0 | G37: 0 | H37: 0 | I37: 0 | J37: 0 | K37: =SUM(K31:K36) -> 0 | L37: 0 | M37: 0 | N37: 0 | O37: 0 | Q37: =SUM(Q31:Q36) -> 0 | R37: =SUM(R31:R36) -> 0 | S37: =SUM(S31:S36) -> 0 | T37: =SUM(T31:T36) -> 0 | U37: =SUM(U31:U36) -> 0 | V37: =SUM(V31:V36) -> 0 | W37: =SUM(W31:W36) -> 0 | X37: =SUM(X31:X36) -> 0 | Y37: 0 | Z37: 0 | AA37: 0 | AB37: 0 | AC37: 0
B39: 3.1.3 - REVENUE (penalties) ALLOWED (deducted) THROUGH INCENTIVE SCHEMES
C40: STANDARD CONTROL SERVICES | Q40: ALTERNATIVE CONTROL SERVICES
C41: REVENUE ($0's) | Q41: REVENUE ($0's)
C42: =dms_y1 -> 2006 | D42: =dms_y2 -> 2007 | E42: =dms_y3 -> 2008 | F42: =dms_y4 -> 2009 | G42: =dms_y5 -> 2010 | H42: =dms_y6 -> 2011 | I42: =dms_y7 -> 2012 | J42: =dms_y8 -> 2013 | K42: =dms_y9 -> 2014 | L42: =dms_y10 -> 2015 | M42: =dms_y11 -> 2016 | N42: =dms_y12 -> 2017 | O42: =dms_y13 -> 2018 | Q42: =dms_y1 -> 2006 | R42: =dms_y2 -> 2007 | S42: =dms_y3 -> 2008 | T42: =dms_y4 -> 2009 | U42: =dms_y5 -> 2010 | V42: =dms_y6 -> 2011 | W42: =dms_y7 -> 2012 | X42: =dms_y8 -> 2013 | Y42: =dms_y9 -> 2014 | Z42: =dms_y10 -> 2015 | AA42: =dms_y11 -> 2016 | AB42: =dms_y12 -> 2017 | AC42: =dms_y13 -> 2018
A43: DREV0301 | B43: EBSS
A44: DREV0302 | B44: STPIS
A45: DREV0303 | B45: F-Factor
A46: DREV0304 | B46: S-Factor True up
A47: DREV0305 | B47: Other
A48: DREV03 | B48: Total revenue of incentive schemes | C48: =SUM(C43:C47) -> 0 | D48: =SUM(D43:D47) -> 0 | E48: 0 | F48: 0 | G48: 0 | H48: 0 | I48: 0 | J48: 0 | K48: =SUM(K43:K47) -> 0 | L48: 0 | M48: 0 | N48: 0 | O48: 0 | Q48: =SUM(Q43:Q47) -> 0 | R48: =SUM(R43:R47) -> 0 | S48: =SUM(S43:S47) -> 0 | T48: =SUM(T43:T47) -> 0 | U48: =SUM(U43:U47) -> 0 | V48: =SUM(V43:V47) -> 0 | W48: =SUM(W43:W47) -> 0 | X48: =SUM(X43:X47) -> 0 | Y48: 0 | Z48: 0 | AA48: 0 | AB48: 0 | AC48: 0

Sheet 3.2 Operating expenditure
B1: =INDEX(dms_Worksheet_List,MATCH(dms_Model,dms_Model_List)) -> RECAST HISTORICAL ECONOMIC BENCHMARKING - CALENDAR YEARS
B2: =INDEX(dms_TradingNameFull_List,MATCH(dms_TradingName,dms_TradingName_List)) -> Powercor Australia
B3: =dms_Header_Span -> 2006 to 2018
B4: 3.2 OPERATING EXPENDITURE
B6: There are THREE tables on this worksheet. Each has been grouped for ease of navigation. see the Instructions sheet on how to group or ungroup tables.
B8: Instructions
B9: Please list current opex categories in tables 3.2.1 and 3.2.2 and provide opex data as required. Where opex categories have changed at any time during the regulatory period, list previous opex categories in the 'Historical' sub-table and provide opex data as required.
B11: 3.2.1 - OPEX CATEGORIES
B12: CURRENT OPEX CATEGORIES AND COST ALLOCATIONS
D13: STANDARD CONTROL SERVICES | R13: ALTERNATIVE CONTROL SERVICES
D14: EXPENDITURE ($0's) | R14: EXPENDITURE ($0's)
D15: =dms_y1 -> 2006 | E15: =dms_y2 -> 2007 | F15: =dms_y3 -> 2008 | G15: =dms_y4 -> 2009 | H15: =dms_y5 -> 2010 | I15: =dms_y6 -> 2011 | J15: =dms_y7 -> 2012 | K15: =dms_y8 -> 2013 | L15: =dms_y9 -> 2014 | M15: =dms_y10 -> 2015 | N15: =dms_y11 -> 2016 | O15: =dms_y12 -> 2017 | P15: =dms_y13 -> 2018 | R15: =dms_y1 -> 2006 | S15: =dms_y2 -> 2007 | T15: =dms_y3 -> 2008 | U15: =dms_y4 -> 2009 | V15: =dms_y5 -> 2010 | W15: =dms_y6 -> 2011 | X15: =dms_y7 -> 2012 | Y15: =dms_y8 -> 2013 | Z15: =dms_y9 -> 2014 | AA15: =dms_y10 -> 2015 | AB15: =dms_y11 -> 2016 | AC15: =dms_y12 -> 2017 | AD15: =dms_y13 -> 2018
A16: DOPEX0101 | B16: Maintenance | G16: 59953462.35 | H16: 63006109.22 | I16: 80908519.54 | J16: 99023509.35 | K16: 113005597.9 | L16: 104192876.3 | M16: 101206741.5 | N16: 53649985.3 | O16: 57191414.54 | P16: 53246353.49
A17: DOPEX0102 | B17: Vegetation Management | G17: 0 | H17: 0 | I17: 0 | J17: 0 | K17: 0 | L17: 0 | M17: 0 | N17: 25419370 | O17: 32199734 | P17: 45642382.64
A18: DOPEX0103 | B18: Emergency | G18: 19880458.09 | H18: 21700474.18 | I18: 24505139.56 | J18: 26170280.23 | K18: 27139067.27 | L18: 26938012.31 | M18: 24633157.67 | N18: 26174681 | O18: 28097966.86 | P18: 32030497.3
A19: DOPEX0104 | B19: Overheads | G19: 52883336.13 | H19: 46370549.63 | I19: 36217464.69 | J19: 47749642.27 | K19: 49549507.23 | L19: 45724029.41 | M19: 66554013.34 | N19: 94691986 | O19: 98376123 | P19: 97714660.33
A20: DOPEX0105
A21: DOPEX0106
A22: DOPEX0107
A23: DOPEX0108
A24: DOPEX0109
A25: DOPEX0110
A26: DOPEX0111
A27: DOPEX0112
A28: DOPEX0113
A29: DOPEX0114
A30: DOPEX0115
A31: DOPEX0116
A32: DOPEX0117
A33: DOPEX0118
A34: DOPEX0119
A35: DOPEX0120
A36: DOPEX0121
A37: DOPEX0122
A38: DOPEX0123
A39: DOPEX0124
A40: DOPEX0125
A41: DOPEX0126
A42: DOPEX0127
A43: DOPEX0128
A44: DOPEX0129
A45: DOPEX0130
A46: DOPEX0131
A47: DOPEX0132
A48: DOPEX0133
A49: DOPEX0134
A50: DOPEX0135
A51: DOPEX0136
A52: DOPEX0137
A53: DOPEX0138
A54: DOPEX0139
A55: DOPEX0140
A56: DOPEX0141
A57: DOPEX0142
A58: DOPEX01 | B58: Total opex | D58: =SUM(D16:D57) -> 0 | E58: 0 | F58: 0 | G58: 132717256.6 | H58: 131077133 | I58: 141631123.8 | J58: 172943431.8 | K58: 189694172.4 | L58: =SUM(L16:L57) -> 176854918 | M58: 192393912.5 | N58: 199936022.3 | O58: 215865238.4 | P58: 228633893.8 | R58: =SUM(R16:R57) -> 0 | S58: =SUM(S16:S57) -> 0 | T58: =SUM(T16:T57) -> 0 | U58: =SUM(U16:U57) -> 0 | V58: =SUM(V16:V57) -> 0 | W58: =SUM(W16:W57) -> 0 | X58: =SUM(X16:X57) -> 0 | Y58: =SUM(Y16:Y57) -> 0 | Z58: =SUM(Z16:Z57) -> 0 | AA58: 0 | AB58: 0 | AC58: 0 | AD58: =SUM(AD16:AD57) -> 0
B60: A: HISTORICAL OPEX CATEGORIES AND COST ALLOCATIONS
D61: STANDARD CONTROL SERVICES | R61: ALTERNATIVE CONTROL SERVICES
D62: EXPENDITURE ($0's) | R62: EXPENDITURE ($0's)
D63: =dms_y1 -> 2006 | E63: =dms_y2 -> 2007 | F63: =dms_y3 -> 2008 | G63: =dms_y4 -> 2009 | H63: =dms_y5 -> 2010 | I63: =dms_y6 -> 2011 | J63: =dms_y7 -> 2012 | K63: =dms_y8 -> 2013 | L63: =dms_y9 -> 2014 | M63: =dms_y10 -> 2015 | N63: =dms_y11 -> 2016 | O63: =dms_y12 -> 2017 | P63: =dms_y13 -> 2018 | R63: =dms_y1 -> 2006 | S63: =dms_y2 -> 2007 | T63: =dms_y3 -> 2008 | U63: =dms_y4 -> 2009 | V63: =dms_y5 -> 2010 | W63: =dms_y6 -> 2011 | X63: =dms_y7 -> 2012 | Y63: =dms_y8 -> 2013 | Z63: =dms_y9 -> 2014 | AA63: =dms_y10 -> 2015 | AB63: =dms_y11 -> 2016 | AC63: =dms_y12 -> 2017 | AD63: =dms_y13 -> 2018
A64: DOPEX0101
A65: DOPEX0102
A66: DOPEX0103
A67: DOPEX0104
A68: DOPEX0105
A69: DOPEX0106
A70: DOPEX0107
A71: DOPEX0108
A72: DOPEX0109
A73: DOPEX0110
A74: DOPEX0111
A75: DOPEX0112
A76: DOPEX0113
A77: DOPEX0114
A78: DOPEX0115
A79: DOPEX0116
A80: DOPEX0117
A81: DOPEX0118
A82: DOPEX0119
A83: DOPEX0120
A84: DOPEX0121
A85: DOPEX0122
A86: DOPEX0123
A87: DOPEX0124
A88: DOPEX0125
A89: DOPEX0126
A90: DOPEX0127
A91: DOPEX0128
A92: DOPEX0129
A93: DOPEX0130
A94: DOPEX0131
A95: DOPEX0132
A96: DOPEX0133
A97: DOPEX0134
A98: DOPEX0135
A99: DOPEX0136
A100: DOPEX0137
A101: DOPEX0138
A102: DOPEX0139
A103: DOPEX0140
A104: DOPEX0141
A105: DOPEX0142
A106: DOPEX01 | B106: Total opex | D106: =SUM(D64:D105) -> 0 | E106: 0 | F106: 0 | G106: 0 | H106: 0 | I106: 0 | J106: 0 | K106: 0 | L106: =SUM(L64:L105) -> 0 | M106: 0 | N106: 0 | O106: 0 | P106: 0 | R106: =SUM(R64:R105) -> 0 | S106: 0 | T106: 0 | U106: 0 | V106: 0 | W106: 0 | X106: 0 | Y106: 0 | Z106: 0 | AA106: 0 | AB106: 0 | AC106: 0 | AD106: 0
B108: B: HISTORICAL OPEX CATEGORIES AND COST ALLOCATIONS
D109: STANDARD CONTROL SERVICES | R109: ALTERNATIVE CONTROL SERVICES
D110: EXPENDITURE ($0's) | R110: EXPENDITURE ($0's)
D111: =dms_y1 -> 2006 | E111: =dms_y2 -> 2007 | F111: =dms_y3 -> 2008 | G111: =dms_y4 -> 2009 | H111: =dms_y5 -> 2010 | I111: =dms_y6 -> 2011 | J111: =dms_y7 -> 2012 | K111: =dms_y8 -> 2013 | L111: =dms_y9 -> 2014 | M111: =dms_y10 -> 2015 | N111: =dms_y11 -> 2016 | O111: =dms_y12 -> 2017 | P111: =dms_y13 -> 2018 | R111: =dms_y1 -> 2006 | S111: =dms_y2 -> 2007 | T111: =dms_y3 -> 2008 | U111: =dms_y4 -> 2009 | V111: =dms_y5 -> 2010 | W111: =dms_y6 -> 2011 | X111: =dms_y7 -> 2012 | Y111: =dms_y8 -> 2013 | Z111: =dms_y9 -> 2014 | AA111: =dms_y10 -> 2015 | AB111: =dms_y11 -> 2016 | AC111: =dms_y12 -> 2017 | AD111: =dms_y13 -> 2018
A112: DOPEX0101
A113: DOPEX0102
A114: DOPEX0103
A115: DOPEX0104
A116: DOPEX0105
A117: DOPEX0106
A118: DOPEX0107
A119: DOPEX0108
A120: DOPEX0109
A121: DOPEX0110
A122: DOPEX0111
A123: DOPEX0112
A124: DOPEX0113
A125: DOPEX0114
A126: DOPEX0115
A127: DOPEX0116
A128: DOPEX0117
A129: DOPEX0118
A130: DOPEX0119
A131: DOPEX0120
A132: DOPEX0121
A133: DOPEX0122
A134: DOPEX0123
A135: DOPEX0124
A136: DOPEX0125
A137: DOPEX0126
A138: DOPEX0127
A139: DOPEX0128
A140: DOPEX0129
A141: DOPEX0130
A142: DOPEX0131
A143: DOPEX0132
A144: DOPEX0133
A145: DOPEX0134
A146: DOPEX0135
A147: DOPEX0136
A148: DOPEX0137
A149: DOPEX0138
A150: DOPEX0139
A151: DOPEX0140
A152: DOPEX0141
A153: DOPEX0142
A154: DOPEX01 | B154: Total opex | D154: =SUM(D112:D153) -> 0 | E154: 0 | F154: 0 | G154: 0 | H154: 0 | I154: 0 | J154: 0 | K154: 0 | L154: =SUM(L112:L153) -> 0 | M154: 0 | N154: 0 | O154: 0 | P154: 0 | R154: =SUM(R112:R153) -> 0 | S154: 0 | T154: 0 | U154: 0 | V154: 0 | W154: 0 | X154: 0 | Y154: 0 | Z154: 0 | AA154: 0 | AB154: 0 | AC154: 0 | AD154: 0
B158: 3.2.2 - OPEX CONSISTENCY
B159: OPEX CONSISTENCY - CURRENT COST ALLOCATION APPROACH
D160: STANDARD CONTROL SERVICES | R160: ALTERNATIVE CONTROL SERVICES
D161: EXPENDITURE ($0's) | R161: EXPENDITURE ($0's)
D162: =dms_y1 -> 2006 | E162: =dms_y2 -> 2007 | F162: =dms_y3 -> 2008 | G162: =dms_y4 -> 2009 | H162: =dms_y5 -> 2010 | I162: =dms_y6 -> 2011 | J162: =dms_y7 -> 2012 | K162: =dms_y8 -> 2013 | L162: =dms_y9 -> 2014 | M162: =dms_y10 -> 2015 | N162: =dms_y11 -> 2016 | O162: =dms_y12 -> 2017 | P162: =dms_y13 -> 2018 | R162: =dms_y1 -> 2006 | S162: =dms_y2 -> 2007 | T162: =dms_y3 -> 2008 | U162: =dms_y4 -> 2009 | V162: =dms_y5 -> 2010 | W162: =dms_y6 -> 2011 | X162: =dms_y7 -> 2012 | Y162: =dms_y8 -> 2013 | Z162: =dms_y9 -> 2014 | AA162: =dms_y10 -> 2015 | AB162: =dms_y11 -> 2016 | AC162: =dms_y12 -> 2017 | AD162: =dms_y13 -> 2018
A163: DOPEX0201 | B163: Opex for network services | G163: =G58-G165-G168 -> 130060610.9 | H163: 128203454.1 | I163: 138361663.7 | J163: 168926765.8 | K163: 185124889.7 | L163: 152790371.6 | M163: 187954572.7 | N163: 199544526.3 | O163: 215490603 | P163: 224219393.2
A164: DOPEX0202 | B164: Opex for metering
A165: DOPEX0203 | B165: Opex for connection services | G165: 2289999.109 | H165: 2519714.998 | I165: 2928280.834 | J165: 3643147.475 | K165: 4214281.645 | L165: 23431746.39 | M165: 3959515.808 | N165: 0 | O165: 0 | P165: 4040126.109
A166: DOPEX0204 | B166: Opex for public lighting
A167: DOPEX0205 | B167: Opex for amounts payable for easement levy or similar direct charges on DNSP
A168: DOPEX0206 | B168: Opex for transmission connection point planning | G168: 366646.525 | H168: 353963.95 | I168: 341179.25 | J168: 373518.6 | K168: 355001.0083 | L168: 632800 | M168: 479824 | N168: 391496 | O168: 374635.4 | P168: 374374.462
B170: OPEX CONSISTENCY - A: HISTORICAL COST ALLOCATION APPROACH
D171: STANDARD CONTROL SERVICES | R171: ALTERNATIVE CONTROL SERVICES
D172: EXPENDITURE ($0's) | R172: EXPENDITURE ($0's)
D173: =dms_y1 -> 2006 | E173: =dms_y2 -> 2007 | F173: =dms_y3 -> 2008 | G173: =dms_y4 -> 2009 | H173: =dms_y5 -> 2010 | I173: =dms_y6 -> 2011 | J173: =dms_y7 -> 2012 | K173: =dms_y8 -> 2013 | L173: =dms_y9 -> 2014 | M173: =dms_y10 -> 2015 | N173: =dms_y11 -> 2016 | O173: =dms_y12 -> 2017 | P173: =dms_y13 -> 2018 | R173: =dms_y1 -> 2006 | S173: =dms_y2 -> 2007 | T173: =dms_y3 -> 2008 | U173: =dms_y4 -> 2009 | V173: =dms_y5 -> 2010 | W173: =dms_y6 -> 2011 | X173: =dms_y7 -> 2012 | Y173: =dms_y8 -> 2013 | Z173: =dms_y9 -> 2014 | AA173: =dms_y10 -> 2015 | AB173: =dms_y11 -> 2016 | AC173: =dms_y12 -> 2017 | AD173: =dms_y13 -> 2018
A174: DOPEX0201 | B174: Opex for network services
A175: DOPEX0202 | B175: Opex for metering
A176: DOPEX0203 | B176: Opex for connection services
A177: DOPEX0204 | B177: Opex for public lighting
A178: DOPEX0205 | B178: Opex for amounts payable for easement levy or similar direct charges on DNSP
A179: DOPEX0206 | B179: Opex for transmission connection point planning
B181: OPEX CONSISTENCY - B: HISTORICAL COST ALLOCATION APPROACH
D182: STANDARD CONTROL SERVICES | R182: ALTERNATIVE CONTROL SERVICES
D183: EXPENDITURE ($0's) | R183: EXPENDITURE ($0's)
D184: =dms_y1 -> 2006 | E184: =dms_y2 -> 2007 | F184: =dms_y3 -> 2008 | G184: =dms_y4 -> 2009 | H184: =dms_y5 -> 2010 | I184: =dms_y6 -> 2011 | J184: =dms_y7 -> 2012 | K184: =dms_y8 -> 2013 | L184: =dms_y9 -> 2014 | M184: =dms_y10 -> 2015 | N184: =dms_y11 -> 2016 | O184: =dms_y12 -> 2017 | P184: =dms_y13 -> 2018 | R184: =dms_y1 -> 2006 | S184: =dms_y2 -> 2007 | T184: =dms_y3 -> 2008 | U184: =dms_y4 -> 2009 | V184: =dms_y5 -> 2010 | W184: =dms_y6 -> 2011 | X184: =dms_y7 -> 2012 | Y184: =dms_y8 -> 2013 | Z184: =dms_y9 -> 2014 | AA184: =dms_y10 -> 2015 | AB184: =dms_y11 -> 2016 | AC184: =dms_y12 -> 2017 | AD184: =dms_y13 -> 2018
A185: DOPEX0201 | B185: Opex for network services
A186: DOPEX0202 | B186: Opex for metering
A187: DOPEX0203 | B187: Opex for connection services
A188: DOPEX0204 | B188: Opex for public lighting
A189: DOPEX0205 | B189: Opex for amounts payable for easement levy or similar direct charges on DNSP
A190: DOPEX0206 | B190: Opex for transmission connection point planning
B194: 3.2.4 - OPEX FOR HIGH VOLTAGE CUSTOMERS
D195: End user costs (not standard control services)
A196: DOPEX0401 | B196: Opex for high voltage customers

Sheet 3.2.3 Provisions
B1: =INDEX(dms_Worksheet_List,MATCH(dms_Model,dms_Model_List)) -> RECAST HISTORICAL ECONOMIC BENCHMARKING - CALENDAR YEARS
B2: =INDEX(dms_TradingNameFull_List,MATCH(dms_TradingName,dms_TradingName_List)) -> Powercor Australia
B3: =dms_Header_Span -> 2006 to 2018
B4: 3.2 OPERATING EXPENDITURE
B6: There is ONE table on this worksheet. Each Provision has been grouped for ease of navigation. see the Instructions sheet on how to group or ungroup tables.
B8: 3.2.3 - PROVISIONS
B9: For each provision report:
C10: $0's
C11: =dms_y1 -> 2006 | D11: =dms_y2 -> 2007 | E11: =dms_y3 -> 2008 | F11: =dms_y4 -> 2009 | G11: =dms_y5 -> 2010 | H11: =dms_y6 -> 2011 | I11: =dms_y7 -> 2012 | J11: =dms_y8 -> 2013 | K11: =dms_y9 -> 2014 | L11: =dms_y10 -> 2015 | M11: =dms_y11 -> 2016 | N11: =dms_y12 -> 2017 | O11: =dms_y13 -> 2018
A12: DOPEX03A | B12: <Provision name>
B13: <Brief description of provision>
A14: DOPEX0301A | B14: Opening balance (the carrying amount at the beginning of the period)
B15: Additional provisions made in the period, including increases to existing provisions
A16: DOPEX0302A | B16: Opex component
A17: DOPEX0303A | B17: Capex component
A18: DOPEX0304A | B18: Other component
B19: Amounts used (that is, incurred and charged against the provision) during the period
A20: DOPEX0305A | B20: Opex component
A21: DOPEX0306A | B21: Capex component
A22: DOPEX0307A | B22: Other component
B23: Unused amounts reversed during the period
A24: DOPEX0308A | B24: Opex component
A25: DOPEX0309A | B25: Capex component
A26: DOPEX0310A | B26: Other component
B27: The increase during the period in the discounted amount arising from the passage of time and the effect of any change in the discount rate
A28: DOPEX0311A | B28: Opex component
A29: DOPEX0312A | B29: Capex component
A30: DOPEX0313A | B30: Other component
A31: DOPEX0314A | B31: Closing balance (carrying amount at the end of the period)
A32: DOPEX03B | B32: <Provision name>
B33: <Brief description of provision>
A34: DOPEX0301B | B34: Opening balance (the carrying amount at the beginning of the period)
B35: Additional provisions made in the period, including increases to existing provisions
A36: DOPEX0302B | B36: Opex component
A37: DOPEX0303B | B37: Capex component
A38: DOPEX0304B | B38: Other component
B39: Amounts used (that is, incurred and charged against the provision) during the period
A40: DOPEX0305B | B40: Opex component
A41: DOPEX0306B | B41: Capex component
A42: DOPEX0307B | B42: Other component
B43: Unused amounts reversed during the period
A44: DOPEX0308B | B44: Opex component
A45: DOPEX0309B | B45: Capex component
A46: DOPEX0310B | B46: Other component
B47: The increase during the period in the discounted amount arising from the passage of time and the effect of any change in the discount rate
A48: DOPEX0311B | B48: Opex component
A49: DOPEX0312B | B49: Capex component
A50: DOPEX0313B | B50: Other component
A51: DOPEX0314B | B51: Closing balance (carrying amount at the end of the period)
A52: DOPEX03C | B52: <Provision name>
B53: <Brief description of provision>
A54: DOPEX0301C | B54: Opening balance (the carrying amount at the beginning of the period)
B55: Additional provisions made in the period, including increases to existing provisions
A56: DOPEX0302C | B56: Opex component
A57: DOPEX0303C | B57: Capex component
A58: DOPEX0304C | B58: Other component
B59: Amounts used (that is, incurred and charged against the provision) during the period
A60: DOPEX0305C | B60: Opex component
A61: DOPEX0306C | B61: Capex component
A62: DOPEX0307C | B62: Other component
B63: Unused amounts reversed during the period
A64: DOPEX0308C | B64: Opex component
A65: DOPEX0309C | B65: Capex component
A66: DOPEX0310C | B66: Other component
B67: The increase during the period in the discounted amount arising from the passage of time and the effect of any change in the discount rate
A68: DOPEX0311C | B68: Opex component
A69: DOPEX0312C | B69: Capex component
A70: DOPEX0313C | B70: Other component
A71: DOPEX0314C | B71: Closing balance (carrying amount at the end of the period)
A72: DOPEX03D | B72: <Provision name>
B73: <Brief description of provision>
A74: DOPEX0301D | B74: Opening balance (the carrying amount at the beginning of the period)
B75: Additional provisions made in the period, including increases to existing provisions
A76: DOPEX0302D | B76: Opex component
A77: DOPEX0303D | B77: Capex component
A78: DOPEX0304D | B78: Other component
B79: Amounts used (that is, incurred and charged against the provision) during the period
A80: DOPEX0305D | B80: Opex component
A81: DOPEX0306D | B81: Capex component
A82: DOPEX0307D | B82: Other component
B83: Unused amounts reversed during the period
A84: DOPEX0308D | B84: Opex component
A85: DOPEX0309D | B85: Capex component
A86: DOPEX0310D | B86: Other component
B87: The increase during the period in the discounted amount arising from the passage of time and the effect of any change in the discount rate
A88: DOPEX0311D | B88: Opex component
A89: DOPEX0312D | B89: Capex component
A90: DOPEX0313D | B90: Other component
A91: DOPEX0314D | B91: Closing balance (carrying amount at the end of the period)
A92: DOPEX03E | B92: <Provision name>
B93: <Brief description of provision>
A94: DOPEX0301E | B94: Opening balance (the carrying amount at the beginning of the period)
B95: Additional provisions made in the period, including increases to existing provisions
A96: DOPEX0302E | B96: Opex component
A97: DOPEX0303E | B97: Capex component
A98: DOPEX0304E | B98: Other component
B99: Amounts used (that is, incurred and charged against the provision) during the period
A100: DOPEX0305E | B100: Opex component
A101: DOPEX0306E | B101: Capex component
A102: DOPEX0307E | B102: Other component
B103: Unused amounts reversed during the period
A104: DOPEX0308E | B104: Opex component
A105: DOPEX0309E | B105: Capex component
A106: DOPEX0310E | B106: Other component
B107: The increase during the period in the discounted amount arising from the passage of time and the effect of any change in the discount rate
A108: DOPEX0311E | B108: Opex component
A109: DOPEX0312E | B109: Capex component
A110: DOPEX0313E | B110: Other component
A111: DOPEX0314E | B111: Closing balance (carrying amount at the end of the period)
A112: DOPEX03F | B112: <Provision name>
B113: <Brief description of provision>
A114: DOPEX0301F | B114: Opening balance (the carrying amount at the beginning of the period)
B115: Additional provisions made in the period, including increases to existing provisions
A116: DOPEX0302F | B116: Opex component
A117: DOPEX0303F | B117: Capex component
A118: DOPEX0304F | B118: Other component
B119: Amounts used (that is, incurred and charged against the provision) during the period
A120: DOPEX0305F | B120: Opex component
A121: DOPEX0306F | B121: Capex component
A122: DOPEX0307F | B122: Other component
B123: Unused amounts reversed during the period
A124: DOPEX0308F | B124: Opex component
A125: DOPEX0309F | B125: Capex component
A126: DOPEX0310F | B126: Other component
B127: The increase during the period in the discounted amount arising from the passage of time and the effect of any change in the discount rate
A128: DOPEX0311F | B128: Opex component
A129: DOPEX0312F | B129: Capex component
A130: DOPEX0313F | B130: Other component
A131: DOPEX0314F | B131: Closing balance (carrying amount at the end of the period)
A132: DOPEX03G | B132: <Provision name>
B133: <Brief description of provision>
A134: DOPEX0301G | B134: Opening balance (the carrying amount at the beginning of the period)
B135: Additional provisions made in the period, including increases to existing provisions
A136: DOPEX0302G | B136: Opex component
A137: DOPEX0303G | B137: Capex component
A138: DOPEX0304G | B138: Other component
B139: Amounts used (that is, incurred and charged against the provision) during the period
A140: DOPEX0305G | B140: Opex component
A141: DOPEX0306G | B141: Capex component
A142: DOPEX0307G | B142: Other component
B143: Unused amounts reversed during the period
A144: DOPEX0308G | B144: Opex component
A145: DOPEX0309G | B145: Capex component
A146: DOPEX0310G | B146: Other component
B147: The increase during the period in the discounted amount arising from the passage of time and the effect of any change in the discount rate
A148: DOPEX0311G | B148: Opex component
A149: DOPEX0312G | B149: Capex component
A150: DOPEX0313G | B150: Other component
A151: DOPEX0314G | B151: Closing balance (carrying amount at the end of the period)
A152: DOPEX03H | B152: <Provision name>
B153: <Brief description of provision>
A154: DOPEX0301H | B154: Opening balance (the carrying amount at the beginning of the period)
B155: Additional provisions made in the period, including increases to existing provisions
A156: DOPEX0302H | B156: Opex component
A157: DOPEX0303H | B157: Capex component
A158: DOPEX0304H | B158: Other component
B159: Amounts used (that is, incurred and charged against the provision) during the period
A160: DOPEX0305H | B160: Opex component
A161: DOPEX0306H | B161: Capex component
A162: DOPEX0307H | B162: Other component
B163: Unused amounts reversed during the period
A164: DOPEX0308H | B164: Opex component
A165: DOPEX0309H | B165: Capex component
A166: DOPEX0310H | B166: Other component
B167: The increase during the period in the discounted amount arising from the passage of time and the effect of any change in the discount rate
A168: DOPEX0311H | B168: Opex component
A169: DOPEX0312H | B169: Capex component
A170: DOPEX0313H | B170: Other component
A171: DOPEX0314H | B171: Closing balance (carrying amount at the end of the period)
A172: DOPEX03I | B172: <Provision name>
B173: <Brief description of provision>
A174: DOPEX0301I | B174: Opening balance (the carrying amount at the beginning of the period)
B175: Additional provisions made in the period, including increases to existing provisions
A176: DOPEX0302I | B176: Opex component
A177: DOPEX0303I | B177: Capex component
A178: DOPEX0304I | B178: Other component
B179: Amounts used (that is, incurred and charged against the provision) during the period
A180: DOPEX0305I | B180: Opex component
A181: DOPEX0306I | B181: Capex component
A182: DOPEX0307I | B182: Other component
B183: Unused amounts reversed during the period
A184: DOPEX0308I | B184: Opex component
A185: DOPEX0309I | B185: Capex component
A186: DOPEX0310I | B186: Other component
B187: The increase during the period in the discounted amount arising from the passage of time and the effect of any change in the discount rate
A188: DOPEX0311I | B188: Opex component
A189: DOPEX0312I | B189: Capex component
A190: DOPEX0313I | B190: Other component
A191: DOPEX0314I | B191: Closing balance (carrying amount at the end of the period)
A192: DOPEX03J | B192: <Provision name>
B193: <Brief description of provision>
A194: DOPEX0301J | B194: Opening balance (the carrying amount at the beginning of the period)
B195: Additional provisions made in the period, including increases to existing provisions
A196: DOPEX0302J | B196: Opex component
A197: DOPEX0303J | B197: Capex component
A198: DOPEX0304J | B198: Other component
B199: Amounts used (that is, incurred and charged against the provision) during the period
A200: DOPEX0305J | B200: Opex component
A201: DOPEX0306J | B201: Capex component
A202: DOPEX0307J | B202: Other component
... 169 more rows

Sheet 3.3 Assets (RAB)
B1: =INDEX(dms_Worksheet_List,MATCH(dms_Model,dms_Model_List)) -> RECAST HISTORICAL ECONOMIC BENCHMARKING - CALENDAR YEARS
B2: =INDEX(dms_TradingNameFull_List,MATCH(dms_TradingName,dms_TradingName_List)) -> Powercor Australia
B3: =dms_Header_Span -> 2006 to 2018
B4: 3.3 ASSETS
B6: There are FOUR tables on this worksheet. Both ROWS and COLUMNS in each have been grouped (and sub-grouped) for ease of navigation. see the Instructions sheet on how to group or ungroup tables.
B8: 3.3.1 - REGULATORY ASSET BASE VALUES
C9: Network services | Q9: Standard control services | AE9: Alternative control services
C10: $0's, Nominal | Q10: $0's, Nominal | AE10: $0's, Nominal
C11: =dms_y1 -> 2006 | D11: =dms_y2 -> 2007 | E11: =dms_y3 -> 2008 | F11: =dms_y4 -> 2009 | G11: =dms_y5 -> 2010 | H11: =dms_y6 -> 2011 | I11: =dms_y7 -> 2012 | J11: =dms_y8 -> 2013 | K11: =dms_y9 -> 2014 | L11: =dms_y10 -> 2015 | M11: =dms_y11 -> 2016 | N11: =dms_y12 -> 2017 | O11: =dms_y13 -> 2018 | Q11: =dms_y1 -> 2006 | R11: =dms_y2 -> 2007 | S11: =dms_y3 -> 2008 | T11: =dms_y4 -> 2009 | U11: =dms_y5 -> 2010 | V11: =dms_y6 -> 2011 | W11: =dms_y7 -> 2012 | X11: =dms_y8 -> 2013 | Y11: =dms_y9 -> 2014 | Z11: =dms_y10 -> 2015 | AA11: =dms_y11 -> 2016 | AB11: =dms_y12 -> 2017 | AC11: =dms_y13 -> 2018 | AE11: =dms_y1 -> 2006 | AF11: =dms_y2 -> 2007 | AG11: =dms_y3 -> 2008 | AH11: =dms_y4 -> 2009 | AI11: =dms_y5 -> 2010 | AJ11: =dms_y6 -> 2011 | AK11: =dms_y7 -> 2012 | AL11: =dms_y8 -> 2013 | AM11: =dms_y9 -> 2014 | AN11: =dms_y10 -> 2015 | AO11: =dms_y11 -> 2016 | AP11: =dms_y12 -> 2017 | AQ11: =dms_y13 -> 2018
B12: For total asset base:
A13: DRAB0101 | B13: Opening value | D13: =C18 -> 0 | E13: =D18 -> 0 | F13: 0 | G13: 0 | H13: 0 | I13: 0 | J13: 0 | K13: 0 | L13: 0 | M13: 0 | N13: 0 | O13: =M18 -> 0 | R13: =Q18 -> 0 | S13: =R18 -> 0 | T13: 0 | U13: 0 | V13: 0 | W13: 0 | X13: 0 | Y13: 0 | Z13: 0 | AA13: =Z18 -> 0 | AB13: =AA18 -> 0 | AC13: =AB18 -> 0 | AF13: =AE18 -> 0 | AG13: =AF18 -> 0 | AH13: 0 | AI13: 0 | AJ13: 0 | AK13: 0 | AL13: 0 | AM13: 0 | AN13: 0 | AO13: 0 | AP13: =AO18 -> 0 | AQ13: =AP18 -> 0
A14: DRAB0102 | B14: Inflation addition
A15: DRAB0103 | B15: Straight line depreciation
A16: DRAB0105 | B16: Actual additions (recognised in RAB)
A17: DRAB0106 | B17: Disposals
A18: DRAB0107 | B18: Closing value | C18: =SUM(C13:C17) -> 0 | D18: 0 | E18: 0 | F18: 0 | G18: 0 | H18: 0 | I18: 0 | J18: =SUM(J13:J17) -> 0 | K18: 0 | L18: 0 | M18: 0 | N18: =SUM(N13:N17) -> 0 | O18: 0 | Q18: =SUM(Q13:Q17) -> 0 | R18: 0 | S18: 0 | T18: 0 | U18: 0 | V18: 0 | W18: 0 | X18: 0 | Y18: 0 | AE18: =SUM(AE13:AE17) -> 0 | AF18: 0 | AG18: 0 | AH18: 0 | AI18: 0 | AJ18: 0 | AK18: 0 | AL18: 0 | AM18: 0 | AN18: 0 | AO18: 0 | AP18: 0 | AQ18: 0
B21: 3.3.2 - ASSET VALUE ROLL FORWARD
C22: Network services | Q22: Standard control services | AE22: Alternative control services
C23: $0's, Nominal | Q23: $0's, Nominal | AE23: $0's, Nominal
C24: =dms_y1 -> 2006 | D24: =dms_y2 -> 2007 | E24: =dms_y3 -> 2008 | F24: =dms_y4 -> 2009 | G24: =dms_y5 -> 2010 | H24: =dms_y6 -> 2011 | I24: =dms_y7 -> 2012 | J24: =dms_y8 -> 2013 | K24: =dms_y9 -> 2014 | L24: =dms_y10 -> 2015 | M24: =dms_y11 -> 2016 | N24: =dms_y12 -> 2017 | O24: =dms_y13 -> 2018 | Q24: =dms_y1 -> 2006 | R24: =dms_y2 -> 2007 | S24: =dms_y3 -> 2008 | T24: =dms_y4 -> 2009 | U24: =dms_y5 -> 2010 | V24: =dms_y6 -> 2011 | W24: =dms_y7 -> 2012 | X24: =dms_y8 -> 2013 | Y24: =dms_y9 -> 2014 | Z24: =dms_y10 -> 2015 | AA24: =dms_y11 -> 2016 | AB24: =dms_y12 -> 2017 | AC24: =dms_y13 -> 2018 | AE24: =dms_y1 -> 2006 | AF24: =dms_y2 -> 2007 | AG24: =dms_y3 -> 2008 | AH24: =dms_y4 -> 2009 | AI24: =dms_y5 -> 2010 | AJ24: =dms_y6 -> 2011 | AK24: =dms_y7 -> 2012 | AL24: =dms_y8 -> 2013 | AM24: =dms_y9 -> 2014 | AN24: =dms_y10 -> 2015 | AO24: =dms_y11 -> 2016 | AP24: =dms_y12 -> 2017 | AQ24: =dms_y13 -> 2018
B25: For overhead network assets less than 33kV
A26: DRAB0201 | B26: Opening value | D26: =C31 -> 0 | E26: =D31 -> 0 | F26: 0 | G26: 0 | H26: 0 | I26: 0 | J26: 0 | K26: 0 | L26: 0 | M26: 0 | N26: 0 | O26: =M31 -> 0 | R26: =Q31 -> 0 | S26: =R31 -> 0 | T26: 0 | U26: 0 | V26: 0 | W26: 0 | X26: 0 | Y26: 0 | Z26: 0 | AA26: 0 | AB26: =AA31 -> 0 | AC26: =AB31 -> 0 | AF26: =AE31 -> 0 | AG26: =AF31 -> 0 | AH26: 0 | AI26: 0 | AJ26: 0 | AK26: 0 | AL26: 0 | AM26: 0 | AN26: 0 | AO26: 0 | AP26: =AO31 -> 0 | AQ26: =AP31 -> 0
A27: DRAB0202 | B27: Inflation addition
A28: DRAB0203 | B28: Straight line depreciation
A29: DRAB0205 | B29: Actual additions (recognised in RAB)
A30: DRAB0206 | B30: Disposals
A31: DRAB0207 | B31: Closing value | C31: =SUM(C26:C30) -> 0 | D31: 0 | E31: 0 | F31: 0 | G31: 0 | H31: 0 | I31: 0 | J31: =SUM(J26:J30) -> 0 | K31: 0 | L31: 0 | M31: 0 | N31: =SUM(N26:N30) -> 0 | O31: 0 | Q31: =SUM(Q26:Q30) -> 0 | R31: 0 | S31: 0 | T31: 0 | U31: 0 | V31: 0 | W31: 0 | X31: 0 | Y31: 0 | Z31: 0 | AA31: 0 | AB31: 0 | AC31: 0 | AE31: =SUM(AE26:AE30) -> 0 | AF31: 0 | AG31: 0 | AH31: 0 | AI31: 0 | AJ31: 0 | AK31: 0 | AL31: 0 | AM31: 0 | AN31: 0 | AO31: 0 | AP31: 0 | AQ31: 0
B32: For underground network assets less than 33kV
A33: DRAB0301 | B33: Opening value | D33: =C38 -> 0 | E33: =D38 -> 0 | F33: 0 | G33: 0 | H33: 0 | I33: 0 | J33: 0 | K33: 0 | L33: 0 | M33: 0 | N33: 0 | O33: =M38 -> 0 | R33: =Q38 -> 0 | S33: =R38 -> 0 | T33: 0 | U33: 0 | V33: 0 | W33: 0 | X33: 0 | Y33: 0 | Z33: 0 | AA33: 0 | AB33: =AA38 -> 0 | AC33: =AB38 -> 0 | AF33: =AE38 -> 0 | AG33: =AF38 -> 0 | AH33: 0 | AI33: 0 | AJ33: 0 | AK33: 0 | AL33: 0 | AM33: 0 | AN33: 0 | AO33: 0 | AP33: =AO38 -> 0 | AQ33: =AP38 -> 0
A34: DRAB0302 | B34: Inflation addition
A35: DRAB0303 | B35: Straight line depreciation
A36: DRAB0305 | B36: Actual additions (recognised in RAB)
A37: DRAB0306 | B37: Disposals
A38: DRAB0307 | B38: Closing value | C38: =SUM(C33:C37) -> 0 | D38: 0 | E38: 0 | F38: 0 | G38: 0 | H38: 0 | I38: 0 | J38: =SUM(J33:J37) -> 0 | K38: 0 | L38: 0 | M38: 0 | N38: =SUM(N33:N37) -> 0 | O38: 0 | Q38: =SUM(Q33:Q37) -> 0 | R38: 0 | S38: 0 | T38: 0 | U38: 0 | V38: 0 | W38: 0 | X38: 0 | Y38: 0 | Z38: 0 | AA38: 0 | AB38: 0 | AC38: 0 | AE38: =SUM(AE33:AE37) -> 0 | AF38: 0 | AG38: 0 | AH38: 0 | AI38: 0 | AJ38: 0 | AK38: 0 | AL38: 0 | AM38: 0 | AN38: 0 | AO38: 0 | AP38: 0 | AQ38: 0
B39: For distribution substations and transformers
A40: DRAB0401 | B40: Opening value | D40: =C45 -> 0 | E40: =D45 -> 0 | F40: 0 | G40: 0 | H40: 0 | I40: 0 | J40: 0 | K40: 0 | L40: 0 | M40: 0 | N40: 0 | O40: =M45 -> 0 | R40: =Q45 -> 0 | S40: =R45 -> 0 | T40: 0 | U40: 0 | V40: 0 | W40: 0 | X40: 0 | Y40: 0 | Z40: 0 | AA40: 0 | AB40: =AA45 -> 0 | AC40: =AB45 -> 0 | AF40: =AE45 -> 0 | AG40: =AF45 -> 0 | AH40: 0 | AI40: 0 | AJ40: 0 | AK40: 0 | AL40: 0 | AM40: 0 | AN40: 0 | AO40: 0 | AP40: =AO45 -> 0 | AQ40: =AP45 -> 0
A41: DRAB0402 | B41: Inflation addition
A42: DRAB0403 | B42: Straight line depreciation
A43: DRAB0405 | B43: Actual additions (recognised in RAB)
A44: DRAB0406 | B44: Disposals
A45: DRAB0407 | B45: Closing value | C45: =SUM(C40:C44) -> 0 | D45: 0 | E45: 0 | F45: 0 | G45: 0 | H45: 0 | I45: 0 | J45: =SUM(J40:J44) -> 0 | K45: 0 | L45: 0 | M45: 0 | N45: =SUM(N40:N44) -> 0 | O45: 0 | Q45: =SUM(Q40:Q44) -> 0 | R45: 0 | S45: 0 | T45: 0 | U45: 0 | V45: 0 | W45: 0 | X45: 0 | Y45: 0 | Z45: 0 | AA45: 0 | AB45: 0 | AC45: 0 | AE45: =SUM(AE40:AE44) -> 0 | AF45: 0 | AG45: 0 | AH45: 0 | AI45: 0 | AJ45: 0 | AK45: 0 | AL45: 0 | AM45: 0 | AN45: 0 | AO45: 0 | AP45: 0 | AQ45: 0
B46: For overhead network assets 33kV and above
A47: DRAB0501 | B47: Opening value | D47: =C52 -> 0 | E47: =D52 -> 0 | F47: 0 | G47: 0 | H47: 0 | I47: 0 | J47: 0 | K47: 0 | L47: 0 | M47: 0 | N47: 0 | O47: =M52 -> 0 | R47: =Q52 -> 0 | S47: =R52 -> 0 | T47: 0 | U47: 0 | V47: 0 | W47: 0 | X47: 0 | Y47: 0 | Z47: 0 | AA47: 0 | AB47: =AA52 -> 0 | AC47: =AB52 -> 0 | AF47: =AE52 -> 0 | AG47: =AF52 -> 0 | AH47: 0 | AI47: 0 | AJ47: 0 | AK47: 0 | AL47: 0 | AM47: 0 | AN47: 0 | AO47: 0 | AP47: =AO52 -> 0 | AQ47: =AP52 -> 0
A48: DRAB0502 | B48: Inflation addition
A49: DRAB0503 | B49: Straight line depreciation
A50: DRAB0505 | B50: Actual additions (recognised in RAB)
A51: DRAB0506 | B51: Disposals
A52: DRAB0507 | B52: Closing value | C52: =SUM(C47:C51) -> 0 | D52: 0 | E52: 0 | F52: 0 | G52: 0 | H52: 0 | I52: 0 | J52: =SUM(J47:J51) -> 0 | K52: 0 | L52: 0 | M52: 0 | N52: =SUM(N47:N51) -> 0 | O52: 0 | Q52: =SUM(Q47:Q51) -> 0 | R52: 0 | S52: 0 | T52: 0 | U52: 0 | V52: 0 | W52: 0 | X52: 0 | Y52: 0 | Z52: 0 | AA52: 0 | AB52: 0 | AC52: 0 | AE52: =SUM(AE47:AE51) -> 0 | AF52: 0 | AG52: 0 | AH52: 0 | AI52: 0 | AJ52: 0 | AK52: 0 | AL52: 0 | AM52: 0 | AN52: 0 | AO52: 0 | AP52: 0 | AQ52: 0
B53: For underground network assets 33kV and above
A54: DRAB0601 | B54: Opening value | D54: =C59 -> 0 | E54: =D59 -> 0 | F54: 0 | G54: 0 | H54: 0 | I54: 0 | J54: 0 | K54: 0 | L54: 0 | M54: 0 | N54: 0 | O54: =M59 -> 0 | R54: =Q59 -> 0 | S54: =R59 -> 0 | T54: 0 | U54: 0 | V54: 0 | W54: 0 | X54: 0 | Y54: 0 | Z54: 0 | AA54: 0 | AB54: =AA59 -> 0 | AC54: =AB59 -> 0 | AF54: =AE59 -> 0 | AG54: =AF59 -> 0 | AH54: 0 | AI54: 0 | AJ54: 0 | AK54: 0 | AL54: 0 | AM54: 0 | AN54: 0 | AO54: 0 | AP54: =AO59 -> 0 | AQ54: =AP59 -> 0
A55: DRAB0602 | B55: Inflation addition
A56: DRAB0603 | B56: Straight line depreciation
A57: DRAB0605 | B57: Actual additions (recognised in RAB)
A58: DRAB0606 | B58: Disposals
A59: DRAB0607 | B59: Closing value | C59: =SUM(C54:C58) -> 0 | D59: 0 | E59: 0 | F59: 0 | G59: 0 | H59: 0 | I59: 0 | J59: =SUM(J54:J58) -> 0 | K59: 0 | L59: 0 | M59: 0 | N59: =SUM(N54:N58) -> 0 | O59: 0 | Q59: =SUM(Q54:Q58) -> 0 | R59: 0 | S59: 0 | T59: 0 | U59: 0 | V59: 0 | W59: 0 | X59: 0 | Y59: 0 | Z59: 0 | AA59: 0 | AB59: 0 | AC59: 0 | AE59: =SUM(AE54:AE58) -> 0 | AF59: 0 | AG59: 0 | AH59: 0 | AI59: 0 | AJ59: 0 | AK59: 0 | AL59: 0 | AM59: 0 | AN59: 0 | AO59: 0 | AP59: 0 | AQ59: 0
B60: Zone substations and transformers
A61: DRAB0701 | B61: Opening value | D61: =C66 -> 0 | E61: =D66 -> 0 | F61: 0 | G61: 0 | H61: 0 | I61: 0 | J61: 0 | K61: 0 | L61: 0 | M61: 0 | N61: 0 | O61: =M66 -> 0 | R61: =Q66 -> 0 | S61: =R66 -> 0 | T61: 0 | U61: 0 | V61: 0 | W61: 0 | X61: 0 | Y61: 0 | Z61: 0 | AA61: 0 | AB61: =AA66 -> 0 | AC61: =AB66 -> 0 | AF61: =AE66 -> 0 | AG61: =AF66 -> 0 | AH61: 0 | AI61: 0 | AJ61: 0 | AK61: 0 | AL61: 0 | AM61: 0 | AN61: 0 | AO61: 0 | AP61: =AO66 -> 0 | AQ61: =AP66 -> 0
A62: DRAB0702 | B62: Inflation addition
A63: DRAB0703 | B63: Straight line depreciation
A64: DRAB0705 | B64: Actual additions (recognised in RAB)
A65: DRAB0706 | B65: Disposals
A66: DRAB0707 | B66: Closing value | C66: =SUM(C61:C65) -> 0 | D66: 0 | E66: 0 | F66: 0 | G66: 0 | H66: 0 | I66: 0 | J66: =SUM(J61:J65) -> 0 | K66: 0 | L66: 0 | M66: 0 | N66: =SUM(N61:N65) -> 0 | O66: 0 | Q66: =SUM(Q61:Q65) -> 0 | R66: 0 | S66: 0 | T66: 0 | U66: 0 | V66: 0 | W66: 0 | X66: 0 | Y66: 0 | AE66: =SUM(AE61:AE65) -> 0 | AF66: 0 | AG66: 0 | AH66: 0 | AI66: 0 | AJ66: 0 | AK66: 0 | AL66: 0 | AM66: 0 | AN66: 0 | AO66: 0 | AP66: 0 | AQ66: 0
B67: For easements
A68: DRAB0801 | B68: Opening value | D68: =C72 -> 0 | E68: =D72 -> 0 | F68: 0 | G68: 0 | H68: 0 | I68: 0 | J68: 0 | K68: 0 | L68: 0 | M68: 0 | N68: 0 | O68: 0 | R68: =Q72 -> 0 | S68: 0 | T68: 0 | U68: 0 | V68: 0 | W68: 0 | X68: 0 | Y68: 0 | Z68: 0 | AA68: 0 | AB68: 0 | AC68: 0 | AF68: =AE72 -> 0 | AG68: 0 | AH68: 0 | AI68: 0 | AJ68: 0 | AK68: 0 | AL68: 0 | AM68: 0 | AN68: 0 | AO68: 0 | AP68: 0 | AQ68: 0
A69: DRAB0802 | B69: Inflation addition
A70: DRAB0805 | B70: Actual additions (recognised in RAB)
A71: DRAB0806 | B71: Disposals
A72: DRAB0807 | B72: Closing value | C72: =SUM(C68:C71) -> 0 | D72: 0 | E72: 0 | F72: 0 | G72: 0 | H72: 0 | I72: 0 | J72: =SUM(J68:J71) -> 0 | K72: 0 | L72: 0 | M72: 0 | N72: =SUM(N68:N71) -> 0 | O72: 0 | Q72: =SUM(Q68:Q71) -> 0 | R72: 0 | S72: 0 | T72: 0 | U72: 0 | V72: 0 | W72: 0 | X72: 0 | Y72: 0 | Z72: 0 | AA72: 0 | AB72: 0 | AC72: 0 | AE72: =SUM(AE68:AE71) -> 0 | AF72: 0 | AG72: 0 | AH72: 0 | AI72: 0 | AJ72: 0 | AK72: 0 | AL72: 0 | AM72: 0 | AN72: 0 | AO72: 0 | AP72: 0 | AQ72: 0
B73: For meters
A74: DRAB0901 | B74: Opening value | D74: =C79 -> 0 | E74: =D79 -> 0 | F74: 0 | G74: 0 | H74: 0 | I74: 0 | J74: 0 | K74: 0 | L74: 0 | M74: 0 | N74: 0 | O74: =M79 -> 0 | R74: =Q79 -> 0 | S74: =R79 -> 0 | T74: 0 | U74: 0 | V74: 0 | W74: 0 | X74: 0 | Y74: 0 | Z74: 0 | AA74: 0 | AB74: =AA79 -> 0 | AC74: =AB79 -> 0 | AF74: =AE79 -> 0 | AG74: =AF79 -> 0 | AH74: 0 | AI74: 0 | AJ74: 0 | AK74: 0 | AL74: 0 | AM74: 0 | AN74: 0 | AO74: 0 | AP74: =AO79 -> 0 | AQ74: =AP79 -> 0
A75: DRAB0902 | B75: Inflation addition
A76: DRAB0903 | B76: Straight line depreciation
A77: DRAB0905 | B77: Actual additions (recognised in RAB)
A78: DRAB0906 | B78: Disposals
A79: DRAB0907 | B79: Closing value | C79: =SUM(C74:C78) -> 0 | D79: 0 | E79: 0 | F79: 0 | G79: 0 | H79: 0 | I79: 0 | J79: =SUM(J74:J78) -> 0 | K79: 0 | L79: 0 | M79: 0 | N79: =SUM(N74:N78) -> 0 | O79: 0 | Q79: =SUM(Q74:Q78) -> 0 | R79: 0 | S79: 0 | T79: 0 | U79: 0 | V79: 0 | W79: 0 | X79: 0 | Y79: 0 | Z79: 0 | AA79: 0 | AB79: 0 | AC79: 0 | AE79: =SUM(AE74:AE78) -> 0 | AF79: 0 | AG79: 0 | AH79: 0 | AI79: 0 | AJ79: 0 | AK79: 0 | AL79: 0 | AM79: 0 | AN79: 0 | AO79: 0 | AP79: 0 | AQ79: 0
B80: For “other” asset items with long lives
A81: DRAB1001 | B81: Opening value | D81: =C86 -> 0 | E81: =D86 -> 0 | F81: 0 | G81: 0 | H81: 0 | I81: 0 | J81: 0 | K81: 0 | L81: 0 | M81: 0 | N81: 0 | O81: =M86 -> 0 | R81: =Q86 -> 0 | S81: =R86 -> 0 | T81: 0 | U81: 0 | V81: 0 | W81: 0 | X81: 0 | Y81: 0 | Z81: 0 | AA81: 0 | AB81: =AA86 -> 0 | AC81: =AB86 -> 0 | AF81: =AE86 -> 0 | AG81: =AF86 -> 0 | AH81: 0 | AI81: 0 | AJ81: 0 | AK81: 0 | AL81: 0 | AM81: 0 | AN81: 0 | AO81: 0 | AP81: =AO86 -> 0 | AQ81: =AP86 -> 0
A82: DRAB1002 | B82: Inflation addition
A83: DRAB1003 | B83: Straight line depreciation
A84: DRAB1005 | B84: Actual additions (recognised in RAB)
A85: DRAB1006 | B85: Disposals
A86: DRAB1007 | B86: Closing value | C86: =SUM(C81:C85) -> 0 | D86: 0 | E86: 0 | F86: 0 | G86: 0 | H86: 0 | I86: 0 | J86: =SUM(J81:J85) -> 0 | K86: 0 | L86: 0 | M86: 0 | N86: =SUM(N81:N85) -> 0 | O86: 0 | Q86: =SUM(Q81:Q85) -> 0 | R86: 0 | S86: 0 | T86: 0 | U86: 0 | V86: 0 | W86: 0 | X86: 0 | Y86: 0 | Z86: 0 | AA86: 0 | AB86: 0 | AC86: 0 | AE86: =SUM(AE81:AE85) -> 0 | AF86: 0 | AG86: 0 | AH86: 0 | AI86: 0 | AJ86: 0 | AK86: 0 | AL86: 0 | AM86: 0 | AN86: 0 | AO86: 0 | AP86: 0 | AQ86: 0
B87: For “other” asset items with short lives
A88: DRAB1101 | B88: Opening value | D88: =C93 -> 0 | E88: =D93 -> 0 | F88: 0 | G88: 0 | H88: 0 | I88: 0 | J88: 0 | K88: 0 | L88: 0 | M88: 0 | N88: 0 | O88: =M93 -> 0 | R88: =Q93 -> 0 | S88: =R93 -> 0 | T88: 0 | U88: 0 | V88: 0 | W88: 0 | X88: 0 | Y88: 0 | Z88: 0 | AA88: 0 | AB88: =AA93 -> 0 | AC88: =AB93 -> 0 | AF88: =AE93 -> 0 | AG88: =AF93 -> 0 | AH88: 0 | AI88: 0 | AJ88: 0 | AK88: 0 | AL88: 0 | AM88: 0 | AN88: 0 | AO88: 0 | AP88: =AO93 -> 0 | AQ88: =AP93 -> 0
A89: DRAB1102 | B89: Inflation addition
A90: DRAB1103 | B90: Straight line depreciation
A91: DRAB1105 | B91: Actual additions (recognised in RAB)
A92: DRAB1106 | B92: Disposals
A93: DRAB1107 | B93: Closing value | C93: =SUM(C88:C92) -> 0 | D93: 0 | E93: 0 | F93: 0 | G93: 0 | H93: 0 | I93: 0 | J93: =SUM(J88:J92) -> 0 | K93: 0 | L93: 0 | M93: 0 | N93: =SUM(N88:N92) -> 0 | O93: 0 | Q93: =SUM(Q88:Q92) -> 0 | R93: 0 | S93: 0 | T93: 0 | U93: 0 | V93: 0 | W93: 0 | X93: 0 | Y93: 0 | Z93: 0 | AA93: 0 | AB93: 0 | AC93: 0 | AE93: =SUM(AE88:AE92) -> 0 | AF93: 0 | AG93: 0 | AH93: 0 | AI93: 0 | AJ93: 0 | AK93: 0 | AL93: 0 | AM93: 0 | AN93: 0 | AO93: 0 | AP93: 0 | AQ93: 0
B98: 3.3.3 - TOTAL DISAGGREGATED RAB ASSET VALUES
C99: Network services | Q99: Standard control services | AE99: Alternative control services
C100: $0's, Nominal | Q100: $0's, Nominal | AE100: $0's, Nominal
C101: =dms_y1 -> 2006 | D101: =dms_y2 -> 2007 | E101: =dms_y3 -> 2008 | F101: =dms_y4 -> 2009 | G101: =dms_y5 -> 2010 | H101: =dms_y6 -> 2011 | I101: =dms_y7 -> 2012 | J101: =dms_y8 -> 2013 | K101: =dms_y9 -> 2014 | L101: =dms_y10 -> 2015 | M101: =dms_y11 -> 2016 | N101: =dms_y12 -> 2017 | O101: =dms_y13 -> 2018 | Q101: =dms_y1 -> 2006 | R101: =dms_y2 -> 2007 | S101: =dms_y3 -> 2008 | T101: =dms_y4 -> 2009 | U101: =dms_y5 -> 2010 | V101: =dms_y6 -> 2011 | W101: =dms_y7 -> 2012 | X101: =dms_y8 -> 2013 | Y101: =dms_y9 -> 2014 | Z101: =dms_y10 -> 2015 | AA101: =dms_y11 -> 2016 | AB101: =dms_y12 -> 2017 | AC101: =dms_y13 -> 2018 | AE101: =dms_y1 -> 2006 | AF101: =dms_y2 -> 2007 | AG101: =dms_y3 -> 2008 | AH101: =dms_y4 -> 2009 | AI101: =dms_y5 -> 2010 | AJ101: =dms_y6 -> 2011 | AK101: =dms_y7 -> 2012 | AL101: =dms_y8 -> 2013 | AM101: =dms_y9 -> 2014 | AN101: =dms_y10 -> 2015 | AO101: =dms_y11 -> 2016 | AP101: =dms_y12 -> 2017 | AQ101: =dms_y13 -> 2018
A102: DRAB1201 | B102: Overhead network assets less than 33kV (wires and poles)
A103: DRAB1202 | B103: Underground network assets less than 33kV (cables)
A104: DRAB1203 | B104: Distribution substations including transformers
A105: DRAB1204 | B105: Overhead network assets 33kV and above (wires and towers / poles etc)
A106: DRAB1205 | B106: Underground network assets 33kV and above(cables, ducts etc)
A107: DRAB1206 | B107: Zone substations and transformers
A108: DRAB1207 | B108: Easements
A109: DRAB1208 | B109: Meters
A110: DRAB1209 | B110: “Other” assets with long lives
A111: DRAB1210 | B111: “Other” assets with short lives
A112: DRAB13 | B112: Value of Capital Contributions or Contributed Assets (included in the above)
B115: 3.3.4 - ASSET LIVES
C116: Network services | Q116: Standard control services | AE116: Alternative control services
C117: Service Life (Years) | Q117: Service Life (Years) | AE117: Service Life (Years)
C118: =dms_y1 -> 2006 | D118: =dms_y2 -> 2007 | E118: =dms_y3 -> 2008 | F118: =dms_y4 -> 2009 | G118: =dms_y5 -> 2010 | H118: =dms_y6 -> 2011 | I118: =dms_y7 -> 2012 | J118: =dms_y8 -> 2013 | K118: =dms_y9 -> 2014 | L118: =dms_y10 -> 2015 | M118: =dms_y11 -> 2016 | N118: =dms_y12 -> 2017 | O118: =dms_y13 -> 2018 | Q118: =dms_y1 -> 2006 | R118: =dms_y2 -> 2007 | S118: =dms_y3 -> 2008 | T118: =dms_y4 -> 2009 | U118: =dms_y5 -> 2010 | V118: =dms_y6 -> 2011 | W118: =dms_y7 -> 2012 | X118: =dms_y8 -> 2013 | Y118: =dms_y9 -> 2014 | Z118: =dms_y10 -> 2015 | AA118: =dms_y11 -> 2016 | AB118: =dms_y12 -> 2017 | AC118: =dms_y13 -> 2018 | AE118: =dms_y1 -> 2006 | AF118: =dms_y2 -> 2007 | AG118: =dms_y3 -> 2008 | AH118: =dms_y4 -> 2009 | AI118: =dms_y5 -> 2010 | AJ118: =dms_y6 -> 2011 | AK118: =dms_y7 -> 2012 | AL118: =dms_y8 -> 2013 | AM118: =dms_y9 -> 2014 | AN118: =dms_y10 -> 2015 | AO118: =dms_y11 -> 2016 | AP118: =dms_y12 -> 2017 | AQ118: =dms_y13 -> 2018
B119: ESTIMATED SERVICE LIFE OF NEW ASSETS
A120: DRAB1401 | B120: Overhead network assets less than 33kV (wires and poles)
A121: DRAB1402 | B121: Underground network assets less than 33kV (cables)
A122: DRAB1403 | B122: Distribution substations including transformers
A123: DRAB1404 | B123: Overhead network assets 33kV and above (wires and towers / poles etc)
A124: DRAB1405 | B124: Underground network assets 33kV and above(cables, ducts etc)
A125: DRAB1406 | B125: Zone substations and transformers
A126: DRAB1407 | B126: Meters
A127: DRAB1408 | B127: “Other” assets with long lives
A128: DRAB1409 | B128: “Other” assets with short lives
B130: ESTIMATED RESIDUAL SERVICE LIFE
A131: DRAB1501 | B131: Overhead network assets less than 33kV (wires and poles)
A132: DRAB1502 | B132: Underground network assets less than 33kV (cables)
A133: DRAB1503 | B133: Distribution substations including transformers
A134: DRAB1504 | B134: Overhead network assets 33kV and above (wires and towers / poles etc)
A135: DRAB1505 | B135: Underground network assets 33kV and above (cables, ducts etc)
A136: DRAB1506 | B136: Zone substations and transformers
A137: DRAB1507 | B137: Meters
A138: DRAB1508 | B138: “Other” assets with long lives
A139: DRAB1509 | B139: “Other” assets with short lives

Sheet NSP Amendments
B1: =CONCATENATE(dms_TradingName," data amendments") -> Powercor Australia data amendments
B2: Amended Table | C2: Comments
